Workbook

Sheet Read Me
A1: PWC Daily Average Processor
A3: The Daily Average Processor tool will create new 1-in-15 year summary files, similar to those created by PWC, to include the daily average
A4: concentration to the annual estimates provided for years 1 through 30. This information is required for use in the MagTool, where the 30 annual
A5: values are used in a probabilistic analysis. The tool uses the daily time series files created by PWC to generate these new files.
A7: To start the tool, press Ctl-Q and follow directions.
A9: Worksheets
B10: Daily Calcs - worksheet where the daily time series files is imported to and that calculates the 30 years of EECs and statistics
B11: for a particular run.
B12: PWC Summary - worksheet that provides summary of the statistics for a particular run, similar to the
B13: "Custom_15_Parent.txt" file generated by PWC. This worksheet is exported as a text file for each run.
A17: Disclaimer
A18: "This tool has been approved for release by the U.S. Environmental Protection Agency (USEPA). Althoughthe tool has been subjected to rigorous review, the USEPA reserves the right to update the tool as neededpursuant to further analysis and review. No warranty, expressed or implied, is made by the USEPA or the U.S.Government as to the functionality of the tool and related material nor shall the fact of release constituteany such warranty. Furthermore, the tool is released on condition that neither the USEPA nor the U.S. Governmentshall be held liable for any damages resulting from its authorized or unauthorized use."

Sheet Daily Calcs
G1: Adjusted | H1: Adjusted
D2: avg | E2: pore water | F2: peak | G2: Peak | H2: Average | AO2: Year | AP2: Year | AQ2: Year | AR2: Year | AS2: Year | AT2: Year | AU2: Year | AV2: Year | AW2: Year | AX2: Year | AY2: Year | AZ2: Year | BA2: Year | BB2: Year | BC2: Year | BD2: Year | BE2: Year | BF2: Year | BG2: Year | BH2: Year | BI2: Year | BJ2: Year | BK2: Year | BL2: Year | BM2: Year | BN2: Year | BO2: Year | BP2: Year | BQ2: Year | BR2: Year
A3: day | B3: date | C3: year | D3: conc.ppm | E3: conc.ppm | F3: conc.ppm | G3: EEC (ppm) | H3: AEEC (ppm) | I3: 4 day | J3: 14 day | K3: 21 day | L3: 30 day | M3: 60 day | N3: 90 day | O3: Annual | P3: PW_peak | Q3: PW_21 | R3: Year | S3: Max Peak | T3: 1-day | U3: Annual | V3: 4-day | W3: Max 21 day | X3: Max 60 day | Y3: Max 90 day | Z3: Max PW | AA3: Max PW 21 | AC3: Prob | AD3: Max Peak | AE3: 1-day | AF3: Annual | AG3: 4-day | AH3: Max 21 day | AI3: Max 60 day | AJ3: Max 90 day | AK3: Max PW | AL3: Max PW 21 | AO3: 1961 | AP3: =AO3+1 -> 1962 | AQ3: 1963 | AR3: 1964 | AS3: 1965 | AT3: 1966 | AU3: 1967 | AV3: 1968 | AW3: 1969 | AX3: 1970 | AY3: 1971 | AZ3: 1972 | BA3: 1973 | BB3: 1974 | BC3: 1975 | BD3: 1976 | BE3: 1977 | BF3: 1978 | BG3: 1979 | BH3: 1980 | BI3: 1981 | BJ3: 1982 | BK3: 1983 | BL3: 1984 | BM3: 1985 | BN3: 1986 | BO3: 1987 | BP3: 1988 | BQ3: 1989 | BR3: 1990
A4: 0 | B4: 1961-01-01 | C4: =YEAR(B4) -> 1961 | D4: 0 | E4: 0 | F4: 0 | G4: =F4 -> 0 | H4: =D4 -> 0 | P4: =E4 -> 0 | R4: 1961 | S4: =DMAX($B$3:$O$10960,"EEC (ppm)",$AO$2:$AO$3) -> 0.0062949 | T4: =DMAX($B$3:$O$10960,"AEEC (ppm)",$AO$2:$AO$3) -> 0.0051489 | U4: =DMAX($B$3:$O$10960,$U$3,$AO$2:$AO$3) -> 0.0008452629589 | V4: =DMAX($B$3:$O$10960,"4 day",$AO$2:$AO$3) -> 0.0043223 | W4: =DMAX($B$3:$O$10960,"21 day",$AO$2:$AO$3) -> 0.003396628571 | X4: =DMAX($B$3:$O$10960,"60 day",$AO$2:$AO$3) -> 0.002369408333 | Y4: =DMAX($B$3:$O$10960,"90 day",$AO$2:$AO$3) -> 0.002010992222 | Z4: =DMAX($B$3:$Q$10960,"PW_peak",$AO$2:$AO$3) -> 0.0015113 | AA4: =DMAX($B$3:$Q$10960,"PW_21",$AO$2:$AO$3) -> 0.001494728571 | AC4: =1/(30+1) -> 0.03225806452 | AD4: =LARGE(S4:S33,1) -> 0.030963 | AE4: 0.021914 | AF4: 0.002205337685 | AG4: 0.0162075 | AH4: 0.01381528571 | AI4: 0.009851785 | AJ4: 0.007655816667 | AK4: 0.0090446 | AL4: 0.008885585714
A5: 1 | B5: 1961-01-02 | C5: =YEAR(B5) -> 1961 | D5: 0 | E5: 0 | F5: 0 | G5: =F5 -> 0 | H5: =D5 -> 0 | P5: =E5 -> 0 | R5: =R4+1 -> 1962 | S5: =DMAX($B$3:$O$10960,"EEC (ppm)",$AP$2:$AP$3) -> 0.0037182 | T5: =DMAX($B$3:$O$10960,"AEEC (ppm)",$AP$2:$AP$3) -> 0.0034635 | U5: =DMAX($B$3:$O$10960,$U$3,$AP$2:$AP$3) -> 0.0006115051918 | V5: =DMAX($B$3:$O$10960,"4 day",$AP$2:$AP$3) -> 0.003193525 | W5: =DMAX($B$3:$O$10960,"21 day",$AP$2:$AP$3) -> 0.002463338095 | X5: =DMAX($B$3:$O$10960,"60 day",$AP$2:$AP$3) -> 0.001720547167 | Y5: =DMAX($B$3:$O$10960,"90 day",$AP$2:$AP$3) -> 0.001529467778 | Z5: =DMAX($B$3:$Q$10960,"PW_peak",$AP$2:$AP$3) -> 0.001182 | AA5: =DMAX($B$3:$Q$10960,"PW_21",$AP$2:$AP$3) -> 0.001168219048 | AC5: =AC4*2 -> 0.06451612903 | AD5: =LARGE(S4:S33,2) -> 0.016468 | AE5: 0.011258 | AF5: 0.001644381252 | AG5: 0.01001315 | AH5: 0.009020190476 | AI5: 0.006892938333 | AJ5: 0.005505176667 | AK5: 0.0067293 | AL5: 0.006620357143
A6: 2 | B6: 1961-01-03 | C6: 1961 | D6: 0 | E6: 0 | F6: 0 | G6: 0 | H6: 0 | P6: 0 | R6: =R5+1 -> 1963 | S6: =DMAX($B$3:$O$10960,"EEC (ppm)",$AQ$2:$AQ$3) -> 0.0024623 | T6: =DMAX($B$3:$O$10960,"AEEC (ppm)",$AQ$2:$AQ$3) -> 0.0024001 | U6: =DMAX($B$3:$O$10960,$U$3,$AQ$2:$AQ$3) -> 0.0005687029863 | V6: =DMAX($B$3:$O$10960,"4 day",$AQ$2:$AQ$3) -> 0.00228705 | W6: =DMAX($B$3:$O$10960,"21 day",$AQ$2:$AQ$3) -> 0.001952871429 | X6: =DMAX($B$3:$O$10960,"60 day",$AQ$2:$AQ$3) -> 0.001730043333 | Y6: =DMAX($B$3:$O$10960,"90 day",$AQ$2:$AQ$3) -> 0.001402237222 | Z6: =DMAX($B$3:$Q$10960,"PW_peak",$AQ$2:$AQ$3) -> 0.0011875 | AA6: =DMAX($B$3:$Q$10960,"PW_21",$AQ$2:$AQ$3) -> 0.001175904762 | AC6: =AC4*3 -> 0.09677419355 | AD6: =LARGE(S4:S33,3) -> 0.011064 | AE6: 0.0088422 | AF6: 0.001272282608 | AG6: 0.00753245 | AH6: 0.006424680952 | AI6: 0.00512536 | AJ6: 0.004141364444 | AK6: 0.0041373 | AL6: 0.003999452381
A7: 3 | B7: 1961-01-04 | C7: 1961 | D7: 0 | E7: 0 | F7: 0 | G7: 0 | H7: 0 | I7: =AVERAGE(H4:H7) -> 0 | P7: 0 | R7: 1964 | S7: =DMAX($B$3:$O$10960,"EEC (ppm)",$AR$2:$AR$3) -> 0.0062268 | T7: =DMAX($B$3:$O$10960,"AEEC (ppm)",$AR$2:$AR$3) -> 0.0051851 | U7: =DMAX($B$3:$O$10960,$U$3,$AR$2:$AR$3) -> 0.0009226292055 | V7: =DMAX($B$3:$O$10960,"4 day",$AR$2:$AR$3) -> 0.00437295 | W7: =DMAX($B$3:$O$10960,"21 day",$AR$2:$AR$3) -> 0.003522942857 | X7: =DMAX($B$3:$O$10960,"60 day",$AR$2:$AR$3) -> 0.002540686667 | Y7: =DMAX($B$3:$O$10960,"90 day",$AR$2:$AR$3) -> 0.002031518 | Z7: =DMAX($B$3:$Q$10960,"PW_peak",$AR$2:$AR$3) -> 0.0015632 | AA7: =DMAX($B$3:$Q$10960,"PW_21",$AR$2:$AR$3) -> 0.001549719048 | AC7: =AC4*4 -> 0.1290322581 | AD7: =LARGE(S4:S33,4) -> 0.0089407 | AE7: 0.0081363 | AF7: 0.001225368545 | AG7: 0.00743005 | AH7: 0.00622322381 | AI7: 0.004839401667 | AJ7: 0.003875465556 | AK7: 0.0038568 | AL7: 0.003807909524
A8: 4 | B8: 1961-01-05 | C8: 1961 | D8: 0 | E8: 0 | F8: 0 | G8: 0 | H8: 0 | I8: =AVERAGE(H5:H8) -> 0 | P8: 0 | R8: 1965 | S8: =DMAX($B$3:$O$10960,"EEC (ppm)",$AS$2:$AS$3) -> 0.0021303 | T8: =DMAX($B$3:$O$10960,"AEEC (ppm)",$AS$2:$AS$3) -> 0.0021012 | U8: =DMAX($B$3:$O$10960,$U$3,$AS$2:$AS$3) -> 0.0005130228575 | V8: =DMAX($B$3:$O$10960,"4 day",$AS$2:$AS$3) -> 0.00201755 | W8: =DMAX($B$3:$O$10960,"21 day",$AS$2:$AS$3) -> 0.001653366667 | X8: =DMAX($B$3:$O$10960,"60 day",$AS$2:$AS$3) -> 0.0011638935 | Y8: =DMAX($B$3:$O$10960,"90 day",$AS$2:$AS$3) -> 0.001003754 | Z8: =DMAX($B$3:$Q$10960,"PW_peak",$AS$2:$AS$3) -> 0.00062626 | AA8: =DMAX($B$3:$Q$10960,"PW_21",$AS$2:$AS$3) -> 0.0006144904762
A9: 5 | B9: 1961-01-06 | C9: 1961 | D9: 0 | E9: 0 | F9: 0 | G9: 0 | H9: 0 | I9: 0 | P9: 0 | R9: 1966 | S9: =DMAX($B$3:$O$10960,"EEC (ppm)",$AT$2:$AT$3) -> 0.0038307 | T9: =DMAX($B$3:$O$10960,"AEEC (ppm)",$AT$2:$AT$3) -> 0.0037193 | U9: =DMAX($B$3:$O$10960,$U$3,$AT$2:$AT$3) -> 0.001075874647 | V9: =DMAX($B$3:$O$10960,"4 day",$AT$2:$AT$3) -> 0.003559725 | W9: =DMAX($B$3:$O$10960,"21 day",$AT$2:$AT$3) -> 0.003032242857 | X9: =DMAX($B$3:$O$10960,"60 day",$AT$2:$AT$3) -> 0.002503191667 | Y9: =DMAX($B$3:$O$10960,"90 day",$AT$2:$AT$3) -> 0.002147723333 | Z9: =DMAX($B$3:$Q$10960,"PW_peak",$AT$2:$AT$3) -> 0.0018181 | AA9: =DMAX($B$3:$Q$10960,"PW_21",$AT$2:$AT$3) -> 0.0018095 | AC9: 1-in-10 yr (ppm) | AD9: =SLOPE(AD6:AD7,$AC6:$AC7)*0.1+INTERCEPT(AD6:AD7,$AC6:$AC7) -> 0.01085167 | AE9: =SLOPE(AE6:AE7,$AC6:$AC7)*0.1+INTERCEPT(AE6:AE7,$AC6:$AC7) -> 0.00877161 | AF9: =SLOPE(AF6:AF7,$AC6:$AC7)*0.1+INTERCEPT(AF6:AF7,$AC6:$AC7) -> 0.001267591202 | AG9: 0.00752221 | AH9: =SLOPE(AH6:AH7,$AC6:$AC7)*0.1+INTERCEPT(AH6:AH7,$AC6:$AC7) -> 0.006404535238 | AI9: =SLOPE(AI6:AI7,$AC6:$AC7)*0.1+INTERCEPT(AI6:AI7,$AC6:$AC7) -> 0.005096764167 | AJ9: =SLOPE(AJ6:AJ7,$AC6:$AC7)*0.1+INTERCEPT(AJ6:AJ7,$AC6:$AC7) -> 0.004114774556 | AK9: 0.00410925 | AL9: 0.003980298095
A10: 6 | B10: 1961-01-07 | C10: 1961 | D10: 0 | E10: 0 | F10: 0 | G10: 0 | H10: 0 | I10: 0 | P10: 0 | R10: 1967 | S10: =DMAX($B$3:$O$10960,"EEC (ppm)",$AU$2:$AU$3) -> 0.0034019 | T10: =DMAX($B$3:$O$10960,"AEEC (ppm)",$AU$2:$AU$3) -> 0.0030942 | U10: =DMAX($B$3:$O$10960,$U$3,$AU$2:$AU$3) -> 0.0007915186301 | V10: =DMAX($B$3:$O$10960,"4 day",$AU$2:$AU$3) -> 0.0027805 | W10: =DMAX($B$3:$O$10960,"21 day",$AU$2:$AU$3) -> 0.002145309524 | X10: =DMAX($B$3:$O$10960,"60 day",$AU$2:$AU$3) -> 0.001803310167 | Y10: =DMAX($B$3:$O$10960,"90 day",$AU$2:$AU$3) -> 0.001799385667 | Z10: =DMAX($B$3:$Q$10960,"PW_peak",$AU$2:$AU$3) -> 0.0011879 | AA10: =DMAX($B$3:$Q$10960,"PW_21",$AU$2:$AU$3) -> 0.001174080952 | AC10: 1-in-15 yr (ppm) | AD10: =SLOPE(AD5:AD6,$AC5:$AC6)*0.067+INTERCEPT(AD5:AD6,$AC5:$AC6) -> 0.016051892 | AE10: =SLOPE(AE5:AE6,$AC5:$AC6)*0.067+INTERCEPT(AE5:AE6,$AC5:$AC6) -> 0.0110719834 | AF10: =SLOPE(AF5:AF6,$AC5:$AC6)*0.067+INTERCEPT(AF5:AF6,$AC5:$AC6) -> 0.001615729656 | AG10: =SLOPE(AG5:AG6,$AC5:$AC6)*0.067+INTERCEPT(AG5:AG6,$AC5:$AC6) -> 0.0098221361 | AH10: =SLOPE(AH5:AH6,$AC5:$AC6)*0.067+INTERCEPT(AH5:AH6,$AC5:$AC6) -> 0.008820336243 | AI10: =SLOPE(AI5:AI6,$AC5:$AC6)*0.067+INTERCEPT(AI5:AI6,$AC5:$AC6) -> 0.006756834802 | AJ10: =SLOPE(AJ5:AJ6,$AC5:$AC6)*0.067+INTERCEPT(AJ5:AJ6,$AC5:$AC6) -> 0.005400163126 | AK10: 0.006529716 | AL10: 0.006418547476
A11: 7 | B11: 1961-01-08 | C11: 1961 | D11: 0 | E11: 0 | F11: 0 | G11: 0 | H11: 0 | I11: 0 | P11: 0 | R11: 1968 | S11: =DMAX($B$3:$O$10960,"EEC (ppm)",$AV$2:$AV$3) -> 0.0080931 | T11: =DMAX($B$3:$O$10960,"AEEC (ppm)",$AV$2:$AV$3) -> 0.0070314 | U11: =DMAX($B$3:$O$10960,$U$3,$AV$2:$AV$3) -> 0.001131226518 | V11: =DMAX($B$3:$O$10960,"4 day",$AV$2:$AV$3) -> 0.006150225 | W11: =DMAX($B$3:$O$10960,"21 day",$AV$2:$AV$3) -> 0.004953528571 | X11: =DMAX($B$3:$O$10960,"60 day",$AV$2:$AV$3) -> 0.003608811667 | Y11: =DMAX($B$3:$O$10960,"90 day",$AV$2:$AV$3) -> 0.003160757778 | Z11: =DMAX($B$3:$Q$10960,"PW_peak",$AV$2:$AV$3) -> 0.0025807 | AA11: =DMAX($B$3:$Q$10960,"PW_21",$AV$2:$AV$3) -> 0.002552871429 | AC11: 1-in-10 yr (ppb) | AD11: =AD9*1000 -> 10.85167 | AE11: =AE9*1000 -> 8.77161 | AF11: =AF9*1000 -> 1.267591202 | AG11: =AG9*1000 -> 7.52221 | AH11: =AH9*1000 -> 6.404535238 | AI11: 5.096764167 | AJ11: 4.114774556 | AK11: 4.10925 | AL11: 3.980298095
A12: 8 | B12: 1961-01-09 | C12: 1961 | D12: 0 | E12: 0 | F12: 0 | G12: 0 | H12: 0 | I12: 0 | P12: 0 | R12: 1969 | S12: =DMAX($B$3:$O$10960,"EEC (ppm)",$AW$2:$AW$3) -> 0.005576 | T12: =DMAX($B$3:$O$10960,"AEEC (ppm)",$AW$2:$AW$3) -> 0.0052207 | U12: =DMAX($B$3:$O$10960,$U$3,$AW$2:$AW$3) -> 0.0008805950548 | V12: =DMAX($B$3:$O$10960,"4 day",$AW$2:$AW$3) -> 0.0048224 | W12: =DMAX($B$3:$O$10960,"21 day",$AW$2:$AW$3) -> 0.003864804762 | X12: =DMAX($B$3:$O$10960,"60 day",$AW$2:$AW$3) -> 0.00284288 | Y12: =DMAX($B$3:$O$10960,"90 day",$AW$2:$AW$3) -> 0.002409476667 | Z12: =DMAX($B$3:$Q$10960,"PW_peak",$AW$2:$AW$3) -> 0.0030003 | AA12: =DMAX($B$3:$Q$10960,"PW_21",$AW$2:$AW$3) -> 0.002906514286 | AC12: 1-in-15 yr (ppb) | AD12: =AD10*1000 -> 16.051892 | AE12: =AE10*1000 -> 11.0719834 | AF12: =AF10*1000 -> 1.615729656 | AG12: 9.8221361 | AH12: 8.820336243 | AI12: 6.756834802 | AJ12: 5.400163126 | AK12: 6.529716 | AL12: 6.418547476
A13: 9 | B13: 1961-01-10 | C13: 1961 | D13: 0 | E13: 0 | F13: 0 | G13: 0 | H13: 0 | I13: 0 | P13: 0 | R13: 1970 | S13: =DMAX($B$3:$O$10960,"EEC (ppm)",$AX$2:$AX$3) -> 0.0026782 | T13: =DMAX($B$3:$O$10960,"AEEC (ppm)",$AX$2:$AX$3) -> 0.0026179 | U13: =DMAX($B$3:$O$10960,$U$3,$AX$2:$AX$3) -> 0.0006858120603 | V13: =DMAX($B$3:$O$10960,"4 day",$AX$2:$AX$3) -> 0.0025089 | W13: =DMAX($B$3:$O$10960,"21 day",$AX$2:$AX$3) -> 0.002108961905 | X13: =DMAX($B$3:$O$10960,"60 day",$AX$2:$AX$3) -> 0.001670749333 | Y13: =DMAX($B$3:$O$10960,"90 day",$AX$2:$AX$3) -> 0.001387243333 | Z13: =DMAX($B$3:$Q$10960,"PW_peak",$AX$2:$AX$3) -> 0.0011236 | AA13: =DMAX($B$3:$Q$10960,"PW_21",$AX$2:$AX$3) -> 0.001111995238
A14: 10 | B14: 1961-01-11 | C14: 1961 | D14: 0 | E14: 0 | F14: 0 | G14: 0 | H14: 0 | I14: 0 | P14: 0 | R14: 1971 | S14: =DMAX($B$3:$O$10960,"EEC (ppm)",$AY$2:$AY$3) -> 0.0089407 | T14: =DMAX($B$3:$O$10960,"AEEC (ppm)",$AY$2:$AY$3) -> 0.0078071 | U14: =DMAX($B$3:$O$10960,$U$3,$AY$2:$AY$3) -> 0.001272282608 | V14: =DMAX($B$3:$O$10960,"4 day",$AY$2:$AY$3) -> 0.007013825 | W14: =DMAX($B$3:$O$10960,"21 day",$AY$2:$AY$3) -> 0.00622322381 | X14: =DMAX($B$3:$O$10960,"60 day",$AY$2:$AY$3) -> 0.004839401667 | Y14: =DMAX($B$3:$O$10960,"90 day",$AY$2:$AY$3) -> 0.003875465556 | Z14: =DMAX($B$3:$Q$10960,"PW_peak",$AY$2:$AY$3) -> 0.0034976 | AA14: =DMAX($B$3:$Q$10960,"PW_21",$AY$2:$AY$3) -> 0.003450695238 | AD14: Average Annual (ppb) | AG14: =AVERAGE(U4:U33)*1000 -> 0.9429197802
A15: 11 | B15: 1961-01-12 | C15: 1961 | D15: 0 | E15: 0 | F15: 0 | G15: 0 | H15: 0 | I15: 0 | P15: 0 | R15: 1972 | S15: =DMAX($B$3:$O$10960,"EEC (ppm)",$AZ$2:$AZ$3) -> 0.016468 | T15: =DMAX($B$3:$O$10960,"AEEC (ppm)",$AZ$2:$AZ$3) -> 0.011258 | U15: =DMAX($B$3:$O$10960,$U$3,$AZ$2:$AZ$3) -> 0.001644381252 | V15: =DMAX($B$3:$O$10960,"4 day",$AZ$2:$AZ$3) -> 0.01001315 | W15: =DMAX($B$3:$O$10960,"21 day",$AZ$2:$AZ$3) -> 0.009020190476 | X15: =DMAX($B$3:$O$10960,"60 day",$AZ$2:$AZ$3) -> 0.006892938333 | Y15: =DMAX($B$3:$O$10960,"90 day",$AZ$2:$AZ$3) -> 0.005505176667 | Z15: =DMAX($B$3:$Q$10960,"PW_peak",$AZ$2:$AZ$3) -> 0.0067293 | AA15: =DMAX($B$3:$Q$10960,"PW_21",$AZ$2:$AZ$3) -> 0.006620357143
A16: 12 | B16: 1961-01-13 | C16: 1961 | D16: 0 | E16: 0 | F16: 0 | G16: 0 | H16: 0 | I16: 0 | P16: 0 | R16: 1973 | S16: =DMAX($B$3:$O$10960,"EEC (ppm)",$BA$2:$BA$3) -> 0.0054571 | T16: =DMAX($B$3:$O$10960,"AEEC (ppm)",$BA$2:$BA$3) -> 0.0052995 | U16: =DMAX($B$3:$O$10960,$U$3,$BA$2:$BA$3) -> 0.001045639688 | V16: =DMAX($B$3:$O$10960,"4 day",$BA$2:$BA$3) -> 0.005039225 | W16: =DMAX($B$3:$O$10960,"21 day",$BA$2:$BA$3) -> 0.004190766667 | X16: =DMAX($B$3:$O$10960,"60 day",$BA$2:$BA$3) -> 0.003561203333 | Y16: =DMAX($B$3:$O$10960,"90 day",$BA$2:$BA$3) -> 0.003147826667 | Z16: =DMAX($B$3:$Q$10960,"PW_peak",$BA$2:$BA$3) -> 0.0021465 | AA16: =DMAX($B$3:$Q$10960,"PW_21",$BA$2:$BA$3) -> 0.00211862381 | AC16: Benthic Conversion Factor | AF16: 20.4
A17: 13 | B17: 1961-01-14 | C17: 1961 | D17: 0 | E17: 0 | F17: 0 | G17: 0 | H17: 0 | I17: 0 | J17: =AVERAGE(H4:H17) -> 0 | P17: 0 | R17: 1974 | S17: =DMAX($B$3:$O$10960,"EEC (ppm)",$BB$2:$BB$3) -> 0.0029114 | T17: =DMAX($B$3:$O$10960,"AEEC (ppm)",$BB$2:$BB$3) -> 0.0028147 | U17: =DMAX($B$3:$O$10960,$U$3,$BB$2:$BB$3) -> 0.0006732462082 | V17: =DMAX($B$3:$O$10960,"4 day",$BB$2:$BB$3) -> 0.0026653 | W17: =DMAX($B$3:$O$10960,"21 day",$BB$2:$BB$3) -> 0.002143042857 | X17: =DMAX($B$3:$O$10960,"60 day",$BB$2:$BB$3) -> 0.001890025 | Y17: =DMAX($B$3:$O$10960,"90 day",$BB$2:$BB$3) -> 0.001574357333 | Z17: =DMAX($B$3:$Q$10960,"PW_peak",$BB$2:$BB$3) -> 0.0011904 | AA17: =DMAX($B$3:$Q$10960,"PW_21",$BB$2:$BB$3) -> 0.0011707 | AC17: Benthic Mass Fraction in Pore Water | AF17: 0.182
A18: 14 | B18: 1961-01-15 | C18: 1961 | D18: 0 | E18: 0 | F18: 0 | G18: 0 | H18: 0 | I18: 0 | J18: =AVERAGE(H5:H18) -> 0 | P18: 0 | R18: 1975 | S18: =DMAX($B$3:$O$10960,"EEC (ppm)",$BC$2:$BC$3) -> 0.0055464 | T18: =DMAX($B$3:$O$10960,"AEEC (ppm)",$BC$2:$BC$3) -> 0.0050215 | U18: =DMAX($B$3:$O$10960,$U$3,$BC$2:$BC$3) -> 0.0007632101096 | V18: =DMAX($B$3:$O$10960,"4 day",$BC$2:$BC$3) -> 0.004724725 | W18: =DMAX($B$3:$O$10960,"21 day",$BC$2:$BC$3) -> 0.003963471429 | X18: =DMAX($B$3:$O$10960,"60 day",$BC$2:$BC$3) -> 0.002651253333 | Y18: =DMAX($B$3:$O$10960,"90 day",$BC$2:$BC$3) -> 0.00231553 | Z18: =DMAX($B$3:$Q$10960,"PW_peak",$BC$2:$BC$3) -> 0.0015717 | AA18: =DMAX($B$3:$Q$10960,"PW_21",$BC$2:$BC$3) -> 0.001547852381
A19: 15 | B19: 1961-01-16 | C19: 1961 | D19: 0 | E19: 0 | F19: 0 | G19: 0 | H19: 0 | I19: 0 | J19: 0 | P19: 0 | R19: 1976 | S19: =DMAX($B$3:$O$10960,"EEC (ppm)",$BD$2:$BD$3) -> 0.006639 | T19: =DMAX($B$3:$O$10960,"AEEC (ppm)",$BD$2:$BD$3) -> 0.0062896 | U19: =DMAX($B$3:$O$10960,$U$3,$BD$2:$BD$3) -> 0.001225368545 | V19: =DMAX($B$3:$O$10960,"4 day",$BD$2:$BD$3) -> 0.005880425 | W19: =DMAX($B$3:$O$10960,"21 day",$BD$2:$BD$3) -> 0.004816161905 | X19: =DMAX($B$3:$O$10960,"60 day",$BD$2:$BD$3) -> 0.0044462 | Y19: =DMAX($B$3:$O$10960,"90 day",$BD$2:$BD$3) -> 0.003799311111 | Z19: =DMAX($B$3:$Q$10960,"PW_peak",$BD$2:$BD$3) -> 0.0038015 | AA19: =DMAX($B$3:$Q$10960,"PW_21",$BD$2:$BD$3) -> 0.003666380952
A20: 16 | B20: 1961-01-17 | C20: 1961 | D20: 0 | E20: 0 | F20: 0 | G20: 0 | H20: 0 | I20: 0 | J20: 0 | P20: 0 | R20: 1977 | S20: =DMAX($B$3:$O$10960,"EEC (ppm)",$BE$2:$BE$3) -> 0.0038547 | T20: =DMAX($B$3:$O$10960,"AEEC (ppm)",$BE$2:$BE$3) -> 0.0037312 | U20: =DMAX($B$3:$O$10960,$U$3,$BE$2:$BE$3) -> 0.0006719696932 | V20: =DMAX($B$3:$O$10960,"4 day",$BE$2:$BE$3) -> 0.003528925 | W20: =DMAX($B$3:$O$10960,"21 day",$BE$2:$BE$3) -> 0.00282007619 | X20: =DMAX($B$3:$O$10960,"60 day",$BE$2:$BE$3) -> 0.001907323167 | Y20: =DMAX($B$3:$O$10960,"90 day",$BE$2:$BE$3) -> 0.001532700333 | Z20: =DMAX($B$3:$Q$10960,"PW_peak",$BE$2:$BE$3) -> 0.0011413 | AA20: =DMAX($B$3:$Q$10960,"PW_21",$BE$2:$BE$3) -> 0.001122395238
A21: 17 | B21: 1961-01-18 | C21: 1961 | D21: 0 | E21: 0 | F21: 0 | G21: 0 | H21: 0 | I21: 0 | J21: 0 | P21: 0 | R21: 1978 | S21: =DMAX($B$3:$O$10960,"EEC (ppm)",$BF$2:$BF$3) -> 0.030963 | T21: =DMAX($B$3:$O$10960,"AEEC (ppm)",$BF$2:$BF$3) -> 0.021914 | U21: =DMAX($B$3:$O$10960,$U$3,$BF$2:$BF$3) -> 0.002205337685 | V21: =DMAX($B$3:$O$10960,"4 day",$BF$2:$BF$3) -> 0.0162075 | W21: =DMAX($B$3:$O$10960,"21 day",$BF$2:$BF$3) -> 0.01381528571 | X21: =DMAX($B$3:$O$10960,"60 day",$BF$2:$BF$3) -> 0.009851785 | Y21: =DMAX($B$3:$O$10960,"90 day",$BF$2:$BF$3) -> 0.007655816667 | Z21: =DMAX($B$3:$Q$10960,"PW_peak",$BF$2:$BF$3) -> 0.0090446 | AA21: =DMAX($B$3:$Q$10960,"PW_21",$BF$2:$BF$3) -> 0.008885585714
A22: 18 | B22: 1961-01-19 | C22: 1961 | D22: 0 | E22: 0 | F22: 0 | G22: 0 | H22: 0 | I22: 0 | J22: 0 | P22: 0 | R22: 1979 | S22: =DMAX($B$3:$O$10960,"EEC (ppm)",$BG$2:$BG$3) -> 0.0037027 | T22: =DMAX($B$3:$O$10960,"AEEC (ppm)",$BG$2:$BG$3) -> 0.0034018 | U22: =DMAX($B$3:$O$10960,$U$3,$BG$2:$BG$3) -> 0.0007155396164 | V22: =DMAX($B$3:$O$10960,"4 day",$BG$2:$BG$3) -> 0.0030861 | W22: =DMAX($B$3:$O$10960,"21 day",$BG$2:$BG$3) -> 0.002505814286 | X22: =DMAX($B$3:$O$10960,"60 day",$BG$2:$BG$3) -> 0.001996278333 | Y22: =DMAX($B$3:$O$10960,"90 day",$BG$2:$BG$3) -> 0.001742146556 | Z22: =DMAX($B$3:$Q$10960,"PW_peak",$BG$2:$BG$3) -> 0.0011277 | AA22: =DMAX($B$3:$Q$10960,"PW_21",$BG$2:$BG$3) -> 0.001111033333
A23: 19 | B23: 1961-01-20 | C23: 1961 | D23: 0 | E23: 0 | F23: 0 | G23: 0 | H23: 0 | I23: 0 | J23: 0 | P23: 0 | R23: 1980 | S23: =DMAX($B$3:$O$10960,"EEC (ppm)",$BH$2:$BH$3) -> 0.0041713 | T23: =DMAX($B$3:$O$10960,"AEEC (ppm)",$BH$2:$BH$3) -> 0.0039996 | U23: =DMAX($B$3:$O$10960,$U$3,$BH$2:$BH$3) -> 0.0005977094137 | V23: =DMAX($B$3:$O$10960,"4 day",$BH$2:$BH$3) -> 0.003757875 | W23: =DMAX($B$3:$O$10960,"21 day",$BH$2:$BH$3) -> 0.003024909524 | X23: =DMAX($B$3:$O$10960,"60 day",$BH$2:$BH$3) -> 0.002130081667 | Y23: =DMAX($B$3:$O$10960,"90 day",$BH$2:$BH$3) -> 0.001812253778 | Z23: =DMAX($B$3:$Q$10960,"PW_peak",$BH$2:$BH$3) -> 0.0016271 | AA23: =DMAX($B$3:$Q$10960,"PW_21",$BH$2:$BH$3) -> 0.00160002381
A24: 20 | B24: 1961-01-21 | C24: 1961 | D24: 0 | E24: 0 | F24: 0 | G24: 0 | H24: 0 | I24: 0 | J24: 0 | K24: =AVERAGE(H4:H24) -> 0 | P24: 0 | Q24: =AVERAGE(P4:P24) -> 0 | R24: 1981 | S24: =DMAX($B$3:$O$10960,"EEC (ppm)",$BI$2:$BI$3) -> 0.011064 | T24: =DMAX($B$3:$O$10960,"AEEC (ppm)",$BI$2:$BI$3) -> 0.0088422 | U24: =DMAX($B$3:$O$10960,$U$3,$BI$2:$BI$3) -> 0.001052932079 | V24: =DMAX($B$3:$O$10960,"4 day",$BI$2:$BI$3) -> 0.00753245 | W24: =DMAX($B$3:$O$10960,"21 day",$BI$2:$BI$3) -> 0.005758309524 | X24: =DMAX($B$3:$O$10960,"60 day",$BI$2:$BI$3) -> 0.003884945 | Y24: =DMAX($B$3:$O$10960,"90 day",$BI$2:$BI$3) -> 0.003009359333 | Z24: =DMAX($B$3:$Q$10960,"PW_peak",$BI$2:$BI$3) -> 0.0024945 | AA24: =DMAX($B$3:$Q$10960,"PW_21",$BI$2:$BI$3) -> 0.002438471429
A25: 21 | B25: 1961-01-22 | C25: 1961 | D25: 0 | E25: 0 | F25: 0 | G25: 0 | H25: 0 | I25: 0 | J25: 0 | K25: =AVERAGE(H5:H25) -> 0 | P25: 0 | Q25: =AVERAGE(P5:P25) -> 0 | R25: 1982 | S25: =DMAX($B$3:$O$10960,"EEC (ppm)",$BJ$2:$BJ$3) -> 0.0038481 | T25: =DMAX($B$3:$O$10960,"AEEC (ppm)",$BJ$2:$BJ$3) -> 0.0037109 | U25: =DMAX($B$3:$O$10960,$U$3,$BJ$2:$BJ$3) -> 0.0007951962219 | V25: =DMAX($B$3:$O$10960,"4 day",$BJ$2:$BJ$3) -> 0.003528875 | W25: =DMAX($B$3:$O$10960,"21 day",$BJ$2:$BJ$3) -> 0.002875404762 | X25: =DMAX($B$3:$O$10960,"60 day",$BJ$2:$BJ$3) -> 0.002607516667 | Y25: =DMAX($B$3:$O$10960,"90 day",$BJ$2:$BJ$3) -> 0.002400691111 | Z25: =DMAX($B$3:$Q$10960,"PW_peak",$BJ$2:$BJ$3) -> 0.001487 | AA25: =DMAX($B$3:$Q$10960,"PW_21",$BJ$2:$BJ$3) -> 0.001462395238
A26: 22 | B26: 1961-01-23 | C26: 1961 | D26: 0 | E26: 0 | F26: 0 | G26: 0 | H26: 0 | I26: 0 | J26: 0 | K26: 0 | P26: 0 | Q26: 0 | R26: 1983 | S26: =DMAX($B$3:$O$10960,"EEC (ppm)",$BK$2:$BK$3) -> 0.0031949 | T26: =DMAX($B$3:$O$10960,"AEEC (ppm)",$BK$2:$BK$3) -> 0.0031358 | U26: =DMAX($B$3:$O$10960,$U$3,$BK$2:$BK$3) -> 0.0005483300438 | V26: =DMAX($B$3:$O$10960,"4 day",$BK$2:$BK$3) -> 0.0030084 | W26: =DMAX($B$3:$O$10960,"21 day",$BK$2:$BK$3) -> 0.002491209524 | X26: =DMAX($B$3:$O$10960,"60 day",$BK$2:$BK$3) -> 0.001765407167 | Y26: =DMAX($B$3:$O$10960,"90 day",$BK$2:$BK$3) -> 0.001377399222 | Z26: =DMAX($B$3:$Q$10960,"PW_peak",$BK$2:$BK$3) -> 0.0010054 | AA26: =DMAX($B$3:$Q$10960,"PW_21",$BK$2:$BK$3) -> 0.000991957619
A27: 23 | B27: 1961-01-24 | C27: 1961 | D27: 0 | E27: 0 | F27: 0 | G27: 0 | H27: 0 | I27: 0 | J27: 0 | K27: 0 | P27: 0 | Q27: 0 | R27: 1984 | S27: =DMAX($B$3:$O$10960,"EEC (ppm)",$BL$2:$BL$3) -> 0.0076847 | T27: =DMAX($B$3:$O$10960,"AEEC (ppm)",$BL$2:$BL$3) -> 0.0072786 | U27: =DMAX($B$3:$O$10960,$U$3,$BL$2:$BL$3) -> 0.001217320438 | V27: =DMAX($B$3:$O$10960,"4 day",$BL$2:$BL$3) -> 0.006806675 | W27: =DMAX($B$3:$O$10960,"21 day",$BL$2:$BL$3) -> 0.005582419048 | X27: =DMAX($B$3:$O$10960,"60 day",$BL$2:$BL$3) -> 0.003896328333 | Y27: =DMAX($B$3:$O$10960,"90 day",$BL$2:$BL$3) -> 0.003446338889 | Z27: =DMAX($B$3:$Q$10960,"PW_peak",$BL$2:$BL$3) -> 0.0038568 | AA27: =DMAX($B$3:$Q$10960,"PW_21",$BL$2:$BL$3) -> 0.003807909524
A28: 24 | B28: 1961-01-25 | C28: 1961 | D28: 0 | E28: 0 | F28: 0 | G28: 0 | H28: 0 | I28: 0 | J28: 0 | K28: 0 | P28: 0 | Q28: 0 | R28: 1985 | S28: =DMAX($B$3:$O$10960,"EEC (ppm)",$BM$2:$BM$3) -> 0.005487 | T28: =DMAX($B$3:$O$10960,"AEEC (ppm)",$BM$2:$BM$3) -> 0.0051604 | U28: =DMAX($B$3:$O$10960,$U$3,$BM$2:$BM$3) -> 0.0008210461644 | V28: =DMAX($B$3:$O$10960,"4 day",$BM$2:$BM$3) -> 0.0047673 | W28: =DMAX($B$3:$O$10960,"21 day",$BM$2:$BM$3) -> 0.003789047619 | X28: =DMAX($B$3:$O$10960,"60 day",$BM$2:$BM$3) -> 0.002791723333 | Y28: =DMAX($B$3:$O$10960,"90 day",$BM$2:$BM$3) -> 0.002342216222 | Z28: =DMAX($B$3:$Q$10960,"PW_peak",$BM$2:$BM$3) -> 0.001864 | AA28: =DMAX($B$3:$Q$10960,"PW_21",$BM$2:$BM$3) -> 0.001833347619
A29: 25 | B29: 1961-01-26 | C29: 1961 | D29: 0 | E29: 0 | F29: 0 | G29: 0 | H29: 0 | I29: 0 | J29: 0 | K29: 0 | P29: 0 | Q29: 0 | R29: 1986 | S29: =DMAX($B$3:$O$10960,"EEC (ppm)",$BN$2:$BN$3) -> 0.0064436 | T29: =DMAX($B$3:$O$10960,"AEEC (ppm)",$BN$2:$BN$3) -> 0.0060642 | U29: =DMAX($B$3:$O$10960,$U$3,$BN$2:$BN$3) -> 0.0009563396466 | V29: =DMAX($B$3:$O$10960,"4 day",$BN$2:$BN$3) -> 0.00564005 | W29: =DMAX($B$3:$O$10960,"21 day",$BN$2:$BN$3) -> 0.004751433333 | X29: =DMAX($B$3:$O$10960,"60 day",$BN$2:$BN$3) -> 0.003186476667 | Y29: =DMAX($B$3:$O$10960,"90 day",$BN$2:$BN$3) -> 0.002628535556 | Z29: =DMAX($B$3:$Q$10960,"PW_peak",$BN$2:$BN$3) -> 0.0041373 | AA29: =DMAX($B$3:$Q$10960,"PW_21",$BN$2:$BN$3) -> 0.003999452381
A30: 26 | B30: 1961-01-27 | C30: 1961 | D30: 0 | E30: 0 | F30: 0 | G30: 0 | H30: 0 | I30: 0 | J30: 0 | K30: 0 | P30: 0 | Q30: 0 | R30: 1987 | S30: =DMAX($B$3:$O$10960,"EEC (ppm)",$BO$2:$BO$3) -> 0.0078661 | T30: =DMAX($B$3:$O$10960,"AEEC (ppm)",$BO$2:$BO$3) -> 0.0075413 | U30: =DMAX($B$3:$O$10960,$U$3,$BO$2:$BO$3) -> 0.001135154912 | V30: =DMAX($B$3:$O$10960,"4 day",$BO$2:$BO$3) -> 0.007108025 | W30: =DMAX($B$3:$O$10960,"21 day",$BO$2:$BO$3) -> 0.005840766667 | X30: =DMAX($B$3:$O$10960,"60 day",$BO$2:$BO$3) -> 0.00430694 | Y30: =DMAX($B$3:$O$10960,"90 day",$BO$2:$BO$3) -> 0.003362658 | Z30: =DMAX($B$3:$Q$10960,"PW_peak",$BO$2:$BO$3) -> 0.0029476 | AA30: =DMAX($B$3:$Q$10960,"PW_21",$BO$2:$BO$3) -> 0.002879785714
A31: 27 | B31: 1961-01-28 | C31: 1961 | D31: 0 | E31: 0 | F31: 0 | G31: 0 | H31: 0 | I31: 0 | J31: 0 | K31: 0 | P31: 0 | Q31: 0 | R31: 1988 | S31: =DMAX($B$3:$O$10960,"EEC (ppm)",$BP$2:$BP$3) -> 0.003072 | T31: =DMAX($B$3:$O$10960,"AEEC (ppm)",$BP$2:$BP$3) -> 0.0029911 | U31: =DMAX($B$3:$O$10960,$U$3,$BP$2:$BP$3) -> 0.0006679026849 | V31: =DMAX($B$3:$O$10960,"4 day",$BP$2:$BP$3) -> 0.0028501 | W31: =DMAX($B$3:$O$10960,"21 day",$BP$2:$BP$3) -> 0.002540047619 | X31: =DMAX($B$3:$O$10960,"60 day",$BP$2:$BP$3) -> 0.002092638333 | Y31: =DMAX($B$3:$O$10960,"90 day",$BP$2:$BP$3) -> 0.001689170111 | Z31: =DMAX($B$3:$Q$10960,"PW_peak",$BP$2:$BP$3) -> 0.0015551 | AA31: =DMAX($B$3:$Q$10960,"PW_21",$BP$2:$BP$3) -> 0.00153437619
A32: 28 | B32: 1961-01-29 | C32: 1961 | D32: 0 | E32: 0 | F32: 0 | G32: 0 | H32: 0 | I32: 0 | J32: 0 | K32: 0 | P32: 0 | Q32: 0 | R32: 1989 | S32: =DMAX($B$3:$O$10960,"EEC (ppm)",$BQ$2:$BQ$3) -> 0.0088354 | T32: =DMAX($B$3:$O$10960,"AEEC (ppm)",$BQ$2:$BQ$3) -> 0.0081363 | U32: =DMAX($B$3:$O$10960,$U$3,$BQ$2:$BQ$3) -> 0.001192592255 | V32: =DMAX($B$3:$O$10960,"4 day",$BQ$2:$BQ$3) -> 0.00743005 | W32: =DMAX($B$3:$O$10960,"21 day",$BQ$2:$BQ$3) -> 0.006424680952 | X32: =DMAX($B$3:$O$10960,"60 day",$BQ$2:$BQ$3) -> 0.00512536 | Y32: =DMAX($B$3:$O$10960,"90 day",$BQ$2:$BQ$3) -> 0.004141364444 | Z32: =DMAX($B$3:$Q$10960,"PW_peak",$BQ$2:$BQ$3) -> 0.0029676 | AA32: =DMAX($B$3:$Q$10960,"PW_21",$BQ$2:$BQ$3) -> 0.002953004762
A33: 29 | B33: 1961-01-30 | C33: 1961 | D33: 0 | E33: 0 | F33: 0 | G33: 0 | H33: 0 | I33: 0 | J33: 0 | K33: 0 | L33: =AVERAGE(H4:H33) -> 0 | P33: 0 | Q33: 0 | R33: 1990 | S33: =DMAX($B$3:$O$10960,"EEC (ppm)",$BR$2:$BR$3) -> 0.0063162 | T33: =DMAX($B$3:$O$10960,"AEEC (ppm)",$BR$2:$BR$3) -> 0.0057506 | U33: =DMAX($B$3:$O$10960,$U$3,$BR$2:$BR$3) -> 0.00105994403 | V33: =DMAX($B$3:$O$10960,"4 day",$BR$2:$BR$3) -> 0.005331175 | W33: =DMAX($B$3:$O$10960,"21 day",$BR$2:$BR$3) -> 0.004867757143 | X33: =DMAX($B$3:$O$10960,"60 day",$BR$2:$BR$3) -> 0.00389554 | Y33: =DMAX($B$3:$O$10960,"90 day",$BR$2:$BR$3) -> 0.003248224444 | Z33: =DMAX($B$3:$Q$10960,"PW_peak",$BR$2:$BR$3) -> 0.0027808 | AA33: =DMAX($B$3:$Q$10960,"PW_21",$BR$2:$BR$3) -> 0.002737890476
A34: 30 | B34: 1961-01-31 | C34: 1961 | D34: 0 | E34: 0 | F34: 0 | G34: 0 | H34: 0 | I34: 0 | J34: 0 | K34: 0 | L34: =AVERAGE(H5:H34) -> 0 | P34: 0 | Q34: 0
A35: 31 | B35: 1961-02-01 | C35: 1961 | D35: 0 | E35: 0 | F35: 0 | G35: 0 | H35: 0 | I35: 0 | J35: 0 | K35: 0 | L35: 0 | P35: 0 | Q35: 0
A36: 32 | B36: 1961-02-02 | C36: 1961 | D36: 0 | E36: 0 | F36: 0 | G36: 0 | H36: 0 | I36: 0 | J36: 0 | K36: 0 | L36: 0 | P36: 0 | Q36: 0
A37: 33 | B37: 1961-02-03 | C37: 1961 | D37: 0 | E37: 0 | F37: 0 | G37: 0 | H37: 0 | I37: 0 | J37: 0 | K37: 0 | L37: 0 | P37: 0 | Q37: 0
A38: 34 | B38: 1961-02-04 | C38: 1961 | D38: 0 | E38: 0 | F38: 0 | G38: 0 | H38: 0 | I38: 0 | J38: 0 | K38: 0 | L38: 0 | P38: 0 | Q38: 0
A39: 35 | B39: 1961-02-05 | C39: 1961 | D39: 0 | E39: 0 | F39: 0 | G39: 0 | H39: 0 | I39: 0 | J39: 0 | K39: 0 | L39: 0 | P39: 0 | Q39: 0
A40: 36 | B40: 1961-02-06 | C40: 1961 | D40: 0 | E40: 0 | F40: 0 | G40: 0 | H40: 0 | I40: 0 | J40: 0 | K40: 0 | L40: 0 | P40: 0 | Q40: 0
A41: 37 | B41: 1961-02-07 | C41: 1961 | D41: 0 | E41: 0 | F41: 0 | G41: 0 | H41: 0 | I41: 0 | J41: 0 | K41: 0 | L41: 0 | P41: 0 | Q41: 0
A42: 38 | B42: 1961-02-08 | C42: 1961 | D42: 0 | E42: 0 | F42: 0 | G42: 0 | H42: 0 | I42: 0 | J42: 0 | K42: 0 | L42: 0 | P42: 0 | Q42: 0
A43: 39 | B43: 1961-02-09 | C43: 1961 | D43: 0 | E43: 0 | F43: 0 | G43: 0 | H43: 0 | I43: 0 | J43: 0 | K43: 0 | L43: 0 | P43: 0 | Q43: 0
A44: 40 | B44: 1961-02-10 | C44: 1961 | D44: 0 | E44: 0 | F44: 0 | G44: 0 | H44: 0 | I44: 0 | J44: 0 | K44: 0 | L44: 0 | P44: 0 | Q44: 0
A45: 41 | B45: 1961-02-11 | C45: 1961 | D45: 0 | E45: 0 | F45: 0 | G45: 0 | H45: 0 | I45: 0 | J45: 0 | K45: 0 | L45: 0 | P45: 0 | Q45: 0
A46: 42 | B46: 1961-02-12 | C46: 1961 | D46: 0 | E46: 0 | F46: 0 | G46: 0 | H46: 0 | I46: 0 | J46: 0 | K46: 0 | L46: 0 | P46: 0 | Q46: 0
A47: 43 | B47: 1961-02-13 | C47: 1961 | D47: 0 | E47: 0 | F47: 0 | G47: 0 | H47: 0 | I47: 0 | J47: 0 | K47: 0 | L47: 0 | P47: 0 | Q47: 0
A48: 44 | B48: 1961-02-14 | C48: 1961 | D48: 0 | E48: 0 | F48: 0 | G48: 0 | H48: 0 | I48: 0 | J48: 0 | K48: 0 | L48: 0 | P48: 0 | Q48: 0
A49: 45 | B49: 1961-02-15 | C49: 1961 | D49: 0 | E49: 0 | F49: 0 | G49: 0 | H49: 0 | I49: 0 | J49: 0 | K49: 0 | L49: 0 | P49: 0 | Q49: 0
A50: 46 | B50: 1961-02-16 | C50: 1961 | D50: 0 | E50: 0 | F50: 0 | G50: 0 | H50: 0 | I50: 0 | J50: 0 | K50: 0 | L50: 0 | P50: 0 | Q50: 0
A51: 47 | B51: 1961-02-17 | C51: 1961 | D51: 0 | E51: 0 | F51: 0 | G51: 0 | H51: 0 | I51: 0 | J51: 0 | K51: 0 | L51: 0 | P51: 0 | Q51: 0
A52: 48 | B52: 1961-02-18 | C52: 1961 | D52: 0 | E52: 0 | F52: 0 | G52: 0 | H52: 0 | I52: 0 | J52: 0 | K52: 0 | L52: 0 | P52: 0 | Q52: 0
A53: 49 | B53: 1961-02-19 | C53: 1961 | D53: 0 | E53: 0 | F53: 0 | G53: 0 | H53: 0 | I53: 0 | J53: 0 | K53: 0 | L53: 0 | P53: 0 | Q53: 0
A54: 50 | B54: 1961-02-20 | C54: 1961 | D54: 0 | E54: 0 | F54: 0 | G54: 0 | H54: 0 | I54: 0 | J54: 0 | K54: 0 | L54: 0 | P54: 0 | Q54: 0
A55: 51 | B55: 1961-02-21 | C55: 1961 | D55: 0 | E55: 0 | F55: 0 | G55: 0 | H55: 0 | I55: 0 | J55: 0 | K55: 0 | L55: 0 | P55: 0 | Q55: 0
A56: 52 | B56: 1961-02-22 | C56: 1961 | D56: 0 | E56: 0 | F56: 0 | G56: 0 | H56: 0 | I56: 0 | J56: 0 | K56: 0 | L56: 0 | P56: 0 | Q56: 0
A57: 53 | B57: 1961-02-23 | C57: 1961 | D57: 0 | E57: 0 | F57: 0 | G57: 0 | H57: 0 | I57: 0 | J57: 0 | K57: 0 | L57: 0 | P57: 0 | Q57: 0
A58: 54 | B58: 1961-02-24 | C58: 1961 | D58: 0 | E58: 0 | F58: 0 | G58: 0 | H58: 0 | I58: 0 | J58: 0 | K58: 0 | L58: 0 | P58: 0 | Q58: 0
A59: 55 | B59: 1961-02-25 | C59: 1961 | D59: 0 | E59: 0 | F59: 0 | G59: 0 | H59: 0 | I59: 0 | J59: 0 | K59: 0 | L59: 0 | P59: 0 | Q59: 0
A60: 56 | B60: 1961-02-26 | C60: 1961 | D60: 0 | E60: 0 | F60: 0 | G60: 0 | H60: 0 | I60: 0 | J60: 0 | K60: 0 | L60: 0 | P60: 0 | Q60: 0
A61: 57 | B61: 1961-02-27 | C61: 1961 | D61: 0 | E61: 0 | F61: 0 | G61: 0 | H61: 0 | I61: 0 | J61: 0 | K61: 0 | L61: 0 | P61: 0 | Q61: 0
A62: 58 | B62: 1961-02-28 | C62: 1961 | D62: 0 | E62: 0 | F62: 0 | G62: 0 | H62: 0 | I62: 0 | J62: 0 | K62: 0 | L62: 0 | P62: 0 | Q62: 0
A63: 59 | B63: 1961-03-01 | C63: 1961 | D63: 0 | E63: 0 | F63: 0 | G63: 0 | H63: 0 | I63: 0 | J63: 0 | K63: 0 | L63: 0 | M63: =AVERAGE(H4:H63) -> 0 | P63: 0 | Q63: 0
A64: 60 | B64: 1961-03-02 | C64: 1961 | D64: 0 | E64: 0 | F64: 0 | G64: 0 | H64: 0 | I64: 0 | J64: 0 | K64: 0 | L64: 0 | M64: =AVERAGE(H5:H64) -> 0 | P64: 0 | Q64: 0
A65: 61 | B65: 1961-03-03 | C65: 1961 | D65: 0 | E65: 0 | F65: 0 | G65: 0 | H65: 0 | I65: 0 | J65: 0 | K65: 0 | L65: 0 | M65: 0 | P65: 0 | Q65: 0
A66: 62 | B66: 1961-03-04 | C66: 1961 | D66: 0 | E66: 0 | F66: 0 | G66: 0 | H66: 0 | I66: 0 | J66: 0 | K66: 0 | L66: 0 | M66: 0 | P66: 0 | Q66: 0
A67: 63 | B67: 1961-03-05 | C67: 1961 | D67: 0 | E67: 0 | F67: 0 | G67: 0 | H67: 0 | I67: 0 | J67: 0 | K67: 0 | L67: 0 | M67: 0 | P67: 0 | Q67: 0
A68: 64 | B68: 1961-03-06 | C68: 1961 | D68: 0 | E68: 0 | F68: 0 | G68: 0 | H68: 0 | I68: 0 | J68: 0 | K68: 0 | L68: 0 | M68: 0 | P68: 0 | Q68: 0
A69: 65 | B69: 1961-03-07 | C69: =YEAR(B69) -> 1961 | D69: 0 | E69: 0 | F69: 0 | G69: =F69 -> 0 | H69: =D69 -> 0 | I69: 0 | J69: 0 | K69: 0 | L69: 0 | M69: 0 | P69: =E69 -> 0 | Q69: 0
A70: 66 | B70: 1961-03-08 | C70: 1961 | D70: 0 | E70: 0 | F70: 0 | G70: 0 | H70: 0 | I70: 0 | J70: 0 | K70: 0 | L70: 0 | M70: 0 | P70: 0 | Q70: 0
A71: 67 | B71: 1961-03-09 | C71: 1961 | D71: 0 | E71: 0 | F71: 0 | G71: 0 | H71: 0 | I71: 0 | J71: 0 | K71: 0 | L71: 0 | M71: 0 | P71: 0 | Q71: 0
A72: 68 | B72: 1961-03-10 | C72: 1961 | D72: 0 | E72: 0 | F72: 0 | G72: 0 | H72: 0 | I72: =AVERAGE(H69:H72) -> 0 | J72: 0 | K72: 0 | L72: 0 | M72: 0 | P72: 0 | Q72: 0
A73: 69 | B73: 1961-03-11 | C73: 1961 | D73: 0 | E73: 0 | F73: 0 | G73: 0 | H73: 0 | I73: 0 | J73: 0 | K73: 0 | L73: 0 | M73: 0 | P73: 0 | Q73: 0
A74: 70 | B74: 1961-03-12 | C74: 1961 | D74: 0 | E74: 0 | F74: 0 | G74: 0 | H74: 0 | I74: 0 | J74: 0 | K74: 0 | L74: 0 | M74: 0 | P74: 0 | Q74: 0
A75: 71 | B75: 1961-03-13 | C75: 1961 | D75: 0 | E75: 0 | F75: 0 | G75: 0 | H75: 0 | I75: 0 | J75: 0 | K75: 0 | L75: 0 | M75: 0 | P75: 0 | Q75: 0
A76: 72 | B76: 1961-03-14 | C76: 1961 | D76: 0 | E76: 0 | F76: 0 | G76: 0 | H76: 0 | I76: 0 | J76: 0 | K76: 0 | L76: 0 | M76: 0 | P76: 0 | Q76: 0
A77: 73 | B77: 1961-03-15 | C77: 1961 | D77: 0 | E77: 0 | F77: 0 | G77: 0 | H77: 0 | I77: 0 | J77: 0 | K77: 0 | L77: 0 | M77: 0 | P77: 0 | Q77: 0
A78: 74 | B78: 1961-03-16 | C78: 1961 | D78: 0 | E78: 0 | F78: 0 | G78: 0 | H78: 0 | I78: 0 | J78: 0 | K78: 0 | L78: 0 | M78: 0 | P78: 0 | Q78: 0
A79: 75 | B79: 1961-03-17 | C79: 1961 | D79: 0 | E79: 0 | F79: 0 | G79: 0 | H79: 0 | I79: 0 | J79: 0 | K79: 0 | L79: 0 | M79: 0 | P79: 0 | Q79: 0
A80: 76 | B80: 1961-03-18 | C80: 1961 | D80: 0 | E80: 0 | F80: 0 | G80: 0 | H80: 0 | I80: 0 | J80: 0 | K80: 0 | L80: 0 | M80: 0 | P80: 0 | Q80: 0
A81: 77 | B81: 1961-03-19 | C81: 1961 | D81: 0 | E81: 0 | F81: 0 | G81: 0 | H81: 0 | I81: 0 | J81: 0 | K81: 0 | L81: 0 | M81: 0 | P81: 0 | Q81: 0
A82: 78 | B82: 1961-03-20 | C82: 1961 | D82: 0 | E82: 0 | F82: 0 | G82: 0 | H82: 0 | I82: 0 | J82: =AVERAGE(H69:H82) -> 0 | K82: 0 | L82: 0 | M82: 0 | P82: 0 | Q82: 0
A83: 79 | B83: 1961-03-21 | C83: 1961 | D83: 0 | E83: 0 | F83: 0 | G83: 0 | H83: 0 | I83: 0 | J83: 0 | K83: 0 | L83: 0 | M83: 0 | P83: 0 | Q83: 0
A84: 80 | B84: 1961-03-22 | C84: 1961 | D84: 0 | E84: 0 | F84: 0 | G84: 0 | H84: 0 | I84: 0 | J84: 0 | K84: 0 | L84: 0 | M84: 0 | P84: 0 | Q84: 0
A85: 81 | B85: 1961-03-23 | C85: 1961 | D85: 0 | E85: 0 | F85: 0 | G85: 0 | H85: 0 | I85: 0 | J85: 0 | K85: 0 | L85: 0 | M85: 0 | P85: 0 | Q85: 0
A86: 82 | B86: 1961-03-24 | C86: 1961 | D86: 0 | E86: 0 | F86: 0 | G86: 0 | H86: 0 | I86: 0 | J86: 0 | K86: 0 | L86: 0 | M86: 0 | P86: 0 | Q86: 0
A87: 83 | B87: 1961-03-25 | C87: 1961 | D87: 0 | E87: 0 | F87: 0 | G87: 0 | H87: 0 | I87: 0 | J87: 0 | K87: 0 | L87: 0 | M87: 0 | P87: 0 | Q87: 0
A88: 84 | B88: 1961-03-26 | C88: 1961 | D88: 0 | E88: 0 | F88: 0 | G88: 0 | H88: 0 | I88: 0 | J88: 0 | K88: 0 | L88: 0 | M88: 0 | P88: 0 | Q88: 0
A89: 85 | B89: 1961-03-27 | C89: 1961 | D89: 0 | E89: 0 | F89: 0 | G89: 0 | H89: 0 | I89: 0 | J89: 0 | K89: =AVERAGE(H69:H89) -> 0 | L89: 0 | M89: 0 | P89: 0 | Q89: =AVERAGE(P69:P89) -> 0
A90: 86 | B90: 1961-03-28 | C90: 1961 | D90: 0 | E90: 0 | F90: 0 | G90: 0 | H90: 0 | I90: 0 | J90: 0 | K90: 0 | L90: 0 | M90: 0 | P90: 0 | Q90: 0
A91: 87 | B91: 1961-03-29 | C91: 1961 | D91: 0 | E91: 0 | F91: 0 | G91: 0 | H91: 0 | I91: 0 | J91: 0 | K91: 0 | L91: 0 | M91: 0 | P91: 0 | Q91: 0
A92: 88 | B92: 1961-03-30 | C92: 1961 | D92: 0 | E92: 0 | F92: 0 | G92: 0 | H92: 0 | I92: 0 | J92: 0 | K92: 0 | L92: 0 | M92: 0 | P92: 0 | Q92: 0
A93: 89 | B93: 1961-03-31 | C93: 1961 | D93: 0 | E93: 0 | F93: 0 | G93: 0 | H93: 0 | I93: 0 | J93: 0 | K93: 0 | L93: 0 | M93: 0 | N93: =AVERAGE(H4:H93) -> 0 | P93: 0 | Q93: 0
A94: 90 | B94: 1961-04-01 | C94: 1961 | D94: 0 | E94: 0 | F94: 0 | G94: 0 | H94: 0 | I94: 0 | J94: 0 | K94: 0 | L94: 0 | M94: 0 | N94: =AVERAGE(H5:H94) -> 0 | P94: 0 | Q94: 0
A95: 91 | B95: 1961-04-02 | C95: 1961 | D95: 0 | E95: 0 | F95: 0 | G95: 0 | H95: 0 | I95: 0 | J95: 0 | K95: 0 | L95: 0 | M95: 0 | N95: 0 | P95: 0 | Q95: 0
A96: 92 | B96: 1961-04-03 | C96: 1961 | D96: 0 | E96: 0 | F96: 0 | G96: 0 | H96: 0 | I96: 0 | J96: 0 | K96: 0 | L96: 0 | M96: 0 | N96: 0 | P96: 0 | Q96: 0
A97: 93 | B97: 1961-04-04 | C97: 1961 | D97: 0 | E97: 0 | F97: 0 | G97: 0 | H97: 0 | I97: 0 | J97: 0 | K97: 0 | L97: 0 | M97: 0 | N97: 0 | P97: 0 | Q97: 0
A98: 94 | B98: 1961-04-05 | C98: 1961 | D98: 0 | E98: 0 | F98: 0 | G98: 0 | H98: 0 | I98: 0 | J98: 0 | K98: 0 | L98: =AVERAGE(H69:H98) -> 0 | M98: 0 | N98: 0 | P98: 0 | Q98: 0
A99: 95 | B99: 1961-04-06 | C99: 1961 | D99: 0 | E99: 0 | F99: 0 | G99: 0 | H99: 0 | I99: 0 | J99: 0 | K99: 0 | L99: 0 | M99: 0 | N99: 0 | P99: 0 | Q99: 0
A100: 96 | B100: 1961-04-07 | C100: 1961 | D100: 0 | E100: 0 | F100: 0 | G100: 0 | H100: 0 | I100: 0 | J100: 0 | K100: 0 | L100: 0 | M100: 0 | N100: 0 | P100: 0 | Q100: 0
A101: 97 | B101: 1961-04-08 | C101: 1961 | D101: 0 | E101: 0 | F101: 0 | G101: 0 | H101: 0 | I101: 0 | J101: 0 | K101: 0 | L101: 0 | M101: 0 | N101: 0 | P101: 0 | Q101: 0
A102: 98 | B102: 1961-04-09 | C102: 1961 | D102: 0 | E102: 0 | F102: 0 | G102: 0 | H102: 0 | I102: 0 | J102: 0 | K102: 0 | L102: 0 | M102: 0 | N102: 0 | P102: 0 | Q102: 0
A103: 99 | B103: 1961-04-10 | C103: 1961 | D103: 0 | E103: 0 | F103: 0 | G103: 0 | H103: 0 | I103: 0 | J103: 0 | K103: 0 | L103: 0 | M103: 0 | N103: 0 | P103: 0 | Q103: 0
A104: 100 | B104: 1961-04-11 | C104: 1961 | D104: 0 | E104: 0 | F104: 0 | G104: 0 | H104: 0 | I104: 0 | J104: 0 | K104: 0 | L104: 0 | M104: 0 | N104: 0 | P104: 0 | Q104: 0
A105: 101 | B105: 1961-04-12 | C105: 1961 | D105: 0 | E105: 0 | F105: 0 | G105: 0 | H105: 0 | I105: 0 | J105: 0 | K105: 0 | L105: 0 | M105: 0 | N105: 0 | P105: 0 | Q105: 0
A106: 102 | B106: 1961-04-13 | C106: 1961 | D106: 0 | E106: 0 | F106: 0 | G106: 0 | H106: 0 | I106: 0 | J106: 0 | K106: 0 | L106: 0 | M106: 0 | N106: 0 | P106: 0 | Q106: 0
A107: 103 | B107: 1961-04-14 | C107: 1961 | D107: 0 | E107: 0 | F107: 0 | G107: 0 | H107: 0 | I107: 0 | J107: 0 | K107: 0 | L107: 0 | M107: 0 | N107: 0 | P107: 0 | Q107: 0
A108: 104 | B108: 1961-04-15 | C108: 1961 | D108: 0 | E108: 0 | F108: 0 | G108: 0 | H108: 0 | I108: 0 | J108: 0 | K108: 0 | L108: 0 | M108: 0 | N108: 0 | P108: 0 | Q108: 0
A109: 105 | B109: 1961-04-16 | C109: 1961 | D109: 0 | E109: 0 | F109: 0 | G109: 0 | H109: 0 | I109: 0 | J109: 0 | K109: 0 | L109: 0 | M109: 0 | N109: 0 | P109: 0 | Q109: 0
A110: 106 | B110: 1961-04-17 | C110: 1961 | D110: 0 | E110: 0 | F110: 0 | G110: 0 | H110: 0 | I110: 0 | J110: 0 | K110: 0 | L110: 0 | M110: 0 | N110: 0 | P110: 0 | Q110: 0
A111: 107 | B111: 1961-04-18 | C111: 1961 | D111: 0 | E111: 0 | F111: 0 | G111: 0 | H111: 0 | I111: 0 | J111: 0 | K111: 0 | L111: 0 | M111: 0 | N111: 0 | P111: 0 | Q111: 0
A112: 108 | B112: 1961-04-19 | C112: 1961 | D112: 0 | E112: 0 | F112: 0 | G112: 0 | H112: 0 | I112: 0 | J112: 0 | K112: 0 | L112: 0 | M112: 0 | N112: 0 | P112: 0 | Q112: 0
A113: 109 | B113: 1961-04-20 | C113: 1961 | D113: 0 | E113: 0 | F113: 0 | G113: 0 | H113: 0 | I113: 0 | J113: 0 | K113: 0 | L113: 0 | M113: 0 | N113: 0 | P113: 0 | Q113: 0
A114: 110 | B114: 1961-04-21 | C114: 1961 | D114: 0 | E114: 0 | F114: 0 | G114: 0 | H114: 0 | I114: 0 | J114: 0 | K114: 0 | L114: 0 | M114: 0 | N114: 0 | P114: 0 | Q114: 0
A115: 111 | B115: 1961-04-22 | C115: 1961 | D115: 0 | E115: 0 | F115: 0 | G115: 0 | H115: 0 | I115: 0 | J115: 0 | K115: 0 | L115: 0 | M115: 0 | N115: 0 | P115: 0 | Q115: 0
A116: 112 | B116: 1961-04-23 | C116: 1961 | D116: 0.0020168 | E116: 1.737e-05 | F116: 0.0020412 | G116: 0.0020412 | H116: 0.0020168 | I116: 0.0005042 | J116: 0.0001440571429 | K116: 9.603809524e-05 | L116: 6.722666667e-05 | M116: 3.361333333e-05 | N116: 2.240888889e-05 | P116: 1.737e-05 | Q116: 8.271428571e-07
A117: 113 | B117: 1961-04-24 | C117: 1961 | D117: 0.0019689 | E117: 5.1062e-05 | F117: 0.0019927 | G117: 0.0019927 | H117: 0.0019689 | I117: 0.000996425 | J117: 0.0002846928571 | K117: 0.0001897952381 | L117: 0.0001328566667 | M117: 6.642833333e-05 | N117: 4.428555556e-05 | P117: 5.1062e-05 | Q117: 3.258666667e-06
A118: 114 | B118: 1961-04-25 | C118: 1961 | D118: 0.0019222 | E118: 8.3221e-05 | F118: 0.0019453 | G118: 0.0019453 | H118: 0.0019222 | I118: 0.001476975 | J118: 0.0004219928571 | K118: 0.0002813285714 | L118: 0.00019693 | M118: 9.8465e-05 | N118: 6.564333333e-05 | P118: 8.3221e-05 | Q118: 7.221571429e-06
A119: 115 | B119: 1961-04-26 | C119: 1961 | D119: 0.0018767 | E119: 0.0001139 | F119: 0.0018992 | G119: 0.0018992 | H119: 0.0018767 | I119: 0.00194615 | J119: 0.0005560428571 | K119: 0.0003706952381 | L119: 0.0002594866667 | M119: 0.0001297433333 | N119: 8.649555556e-05 | P119: 0.0001139 | Q119: 1.264538095e-05
A120: 116 | B120: 1961-04-27 | C120: 1961 | D120: 0.0018327 | E120: 0.00014315 | F120: 0.0018544 | G120: 0.0018544 | H120: 0.0018327 | I120: 0.001900125 | J120: 0.00068695 | K120: 0.0004579666667 | L120: 0.0003205766667 | M120: 0.0001602883333 | N120: 0.0001068588889 | P120: 0.00014315 | Q120: 1.946204762e-05
A121: 117 | B121: 1961-04-28 | C121: 1961 | D121: 0.00179 | E121: 0.00017105 | F121: 0.0018111 | G121: 0.0018111 | H121: 0.00179 | I121: 0.0018554 | J121: 0.0008148071429 | K121: 0.0005432047619 | L121: 0.0003802433333 | M121: 0.0001901216667 | N121: 0.0001267477778 | P121: 0.00017105 | Q121: 2.760728571e-05
A122: 118 | B122: 1961-04-29 | C122: 1961 | D122: 0.0017486 | E122: 0.00019762 | F122: 0.0017691 | G122: 0.0017691 | H122: 0.0017486 | I122: 0.001812 | J122: 0.0009397071429 | K122: 0.0006264714286 | L122: 0.00043853 | M122: 0.000219265 | N122: 0.0001461766667 | P122: 0.00019762 | Q122: 3.70177619e-05
A123: 119 | B123: 1961-04-30 | C123: 1961 | D123: 0.0017084 | E123: 0.00022293 | F123: 0.0017283 | G123: 0.0017283 | H123: 0.0017084 | I123: 0.001769925 | J123: 0.001061735714 | K123: 0.0007078238095 | L123: 0.0004954766667 | M123: 0.0002477383333 | N123: 0.0001651588889 | P123: 0.00022293 | Q123: 4.763347619e-05
A124: 120 | B124: 1961-05-01 | C124: 1961 | D124: 0.0021077 | E124: 0.00037653 | F124: 0.0021419 | G124: 0.0021419 | H124: 0.0021077 | I124: 0.001838675 | J124: 0.001212285714 | K124: 0.0008081904762 | L124: 0.0005657333333 | M124: 0.0002828666667 | N124: 0.0001885777778 | P124: 0.00037653 | Q124: 6.556347619e-05
A125: 121 | B125: 1961-05-02 | C125: 1961 | D125: 0.0020504 | E125: 0.00040393 | F125: 0.0020739 | G125: 0.0020739 | H125: 0.0020504 | I125: 0.001903775 | J125: 0.001358742857 | K125: 0.0009058285714 | L125: 0.00063408 | M125: 0.00031704 | N125: 0.00021136 | P125: 0.00040393 | Q125: 8.47982381e-05
A126: 122 | B126: 1961-05-03 | C126: 1961 | D126: 0.0020043 | E126: 0.00042986 | F126: 0.0020272 | G126: 0.0020272 | H126: 0.0020043 | I126: 0.0019677 | J126: 0.001501907143 | K126: 0.001001271429 | L126: 0.00070089 | M126: 0.000350445 | N126: 0.00023363 | P126: 0.00042986 | Q126: 0.0001052677619
A127: 123 | B127: 1961-05-04 | C127: 1961 | D127: 0.0019593 | E127: 0.00045442 | F127: 0.0019816 | G127: 0.0019816 | H127: 0.0019593 | I127: 0.002030425 | J127: 0.001641857143 | K127: 0.001094571429 | L127: 0.0007662 | M127: 0.0003831 | N127: 0.0002554 | P127: 0.00045442 | Q127: 0.0001269068095
A128: 124 | B128: 1961-05-05 | C128: 1961 | D128: 0.0019155 | E128: 0.00047768 | F128: 0.0019372 | G128: 0.0019372 | H128: 0.0019155 | I128: 0.001982375 | J128: 0.001778678571 | K128: 0.001185785714 | L128: 0.00083005 | M128: =AVERAGE(H69:H128) -> 0.000415025 | N128: 0.0002766833333 | P128: 0.00047768 | Q128: 0.0001496534762
A129: 125 | B129: 1961-05-06 | C129: 1961 | D129: 0.0018729 | E129: 0.00049969 | F129: 0.001894 | G129: 0.001894 | H129: 0.0018729 | I129: 0.001938 | J129: 0.001912457143 | K129: 0.001274971429 | L129: 0.00089248 | M129: 0.00044624 | N129: 0.0002974933333 | P129: 0.00049969 | Q129: 0.0001734482381
A130: 126 | B130: 1961-05-07 | C130: 1961 | D130: 0.0018496 | E130: 0.00052827 | F130: 0.0018707 | G130: 0.0018707 | H130: 0.0018496 | I130: 0.001899325 | J130: 0.001900514286 | K130: 0.001363047619 | L130: 0.0009541333333 | M130: 0.0004770666667 | N130: 0.0003180444444 | P130: 0.00052827 | Q130: 0.0001986039524
A131: 127 | B131: 1961-05-08 | C131: 1961 | D131: 0.0018084 | E131: 0.00054801 | F131: 0.0018287 | G131: 0.0018287 | H131: 0.0018084 | I131: 0.0018616 | J131: 0.00188905 | K131: 0.001449161905 | L131: 0.001014413333 | M131: 0.0005072066667 | N131: 0.0003381377778 | P131: 0.00054801 | Q131: 0.0002246996667
A132: 128 | B132: 1961-05-09 | C132: 1961 | D132: 0.0017684 | E132: 0.00056656 | F132: 0.0017883 | G132: 0.0017883 | H132: 0.0017684 | I132: 0.001824825 | J132: 0.001878064286 | K132: 0.001533371429 | L132: 0.00107336 | M132: 0.00053668 | N132: 0.0003577866667 | P132: 0.00056656 | Q132: 0.0002516787143
A133: 129 | B133: 1961-05-10 | C133: =YEAR(B133) -> 1961 | D133: 0.0017294 | E133: 0.00058398 | F133: 0.0017487 | G133: =F133 -> 0.0017487 | H133: =D133 -> 0.0017294 | I133: 0.00178895 | J133: 0.001867542857 | K133: 0.00161572381 | L133: 0.001131006667 | M133: 0.0005655033333 | N133: 0.0003770022222 | P133: =E133 -> 0.00058398 | Q133: 0.0002794872857
A134: 130 | B134: 1961-05-11 | C134: 1961 | D134: 0.0018323 | E134: 0.00064662 | F134: 0.0018561 | G134: 0.0018561 | H134: 0.0018323 | I134: 0.001784625 | J134: 0.001867514286 | K134: 0.00170297619 | L134: 0.001192083333 | M134: 0.0005960416667 | N134: 0.0003973611111 | P134: 0.00064662 | Q134: 0.0003102787143
A135: 131 | B135: 1961-05-12 | C135: 1961 | D135: 0.0018417 | E135: 0.00067669 | F135: 0.0018638 | G135: 0.0018638 | H135: 0.0018417 | I135: 0.00179295 | J135: 0.001871207143 | K135: 0.00179067619 | L135: 0.001253473333 | M135: 0.0006267366667 | N135: 0.0004178244444 | P135: 0.00067669 | Q135: 0.0003425020476
A136: 132 | B136: 1961-05-13 | C136: 1961 | D136: 0.0017999 | E136: 0.00069277 | F136: 0.00182 | G136: 0.00182 | H136: 0.0017999 | I136: =AVERAGE(H133:H136) -> 0.001800825 | J136: 0.001874871429 | K136: 0.001876385714 | L136: 0.00131347 | M136: 0.000656735 | N136: 0.0004378233333 | P136: 0.00069277 | Q136: 0.0003754910952
A137: 133 | B137: 1961-05-14 | C137: 1961 | D137: 0.0017603 | E137: 0.00070775 | F137: 0.0017799 | G137: 0.0017799 | H137: 0.0017603 | I137: 0.00180855 | J137: 0.001878578571 | K137: 0.001864171429 | L137: 0.001372146667 | M137: 0.0006860733333 | N137: 0.0004573822222 | P137: 0.00070775 | Q137: 0.0004083663333
A138: 134 | B138: 1961-05-15 | C138: 1961 | D138: 0.0017218 | E138: 0.00072167 | F138: 0.0017409 | G138: 0.0017409 | H138: 0.0017218 | I138: 0.001780925 | J138: 0.001851014286 | K138: 0.001852404762 | L138: 0.00142954 | M138: 0.00071477 | N138: 0.0004765133333 | P138: 0.00072167 | Q138: 0.0004403000476
A139: 135 | B139: 1961-05-16 | C139: 1961 | D139: 0.0016841 | E139: 0.00073458 | F139: 0.0017028 | G139: 0.0017028 | H139: 0.0016841 | I139: 0.001741525 | J139: 0.00182485 | K139: 0.001841066667 | L139: 0.001485676667 | M139: 0.0007428383333 | N139: 0.0004952255556 | P139: 0.00073458 | Q139: 0.0004713171429
A140: 136 | B140: 1961-05-17 | C140: 1961 | D140: 0.0016472 | E140: 0.00074649 | F140: 0.0016655 | G140: 0.0016655 | H140: 0.0016472 | I140: 0.00170335 | J140: 0.001799342857 | K140: 0.001830138095 | L140: 0.001540583333 | M140: 0.0007702916667 | N140: 0.0005135277778 | P140: 0.00074649 | Q140: 0.0005014404762
A141: 137 | B141: 1961-05-18 | C141: 1961 | D141: 0.0016113 | E141: 0.00075747 | F141: 0.0016291 | G141: 0.0016291 | H141: 0.0016113 | I141: 0.0016661 | J141: 0.001774485714 | K141: 0.001819595238 | L141: 0.001594293333 | M141: 0.0007971466667 | N141: 0.0005314311111 | P141: 0.00075747 | Q141: 0.0005306938095
A142: 138 | B142: 1961-05-19 | C142: 1961 | D142: 0.0015761 | E142: 0.00076753 | F142: 0.0015936 | G142: 0.0015936 | H142: 0.0015761 | I142: 0.001629675 | J142: 0.001750242857 | K142: 0.001809409524 | L142: 0.00164683 | M142: 0.000823415 | N142: 0.0005489433333 | P142: 0.00076753 | Q142: 0.000559097619
A143: 139 | B143: 1961-05-20 | C143: 1961 | D143: 0.0015418 | E143: 0.0007767 | F143: 0.0015589 | G143: 0.0015589 | H143: 0.0015418 | I143: 0.0015941 | J143: 0.001726592857 | K143: 0.001799561905 | L143: 0.001698223333 | M143: 0.0008491116667 | N143: 0.0005660744444 | P143: 0.0007767 | Q143: 0.0005866728571
A144: 140 | B144: 1961-05-21 | C144: 1961 | D144: 0.0015083 | E144: 0.00078504 | F144: 0.001525 | G144: 0.001525 | H144: 0.0015083 | I144: 0.001559375 | J144: 0.001702214286 | K144: 0.001790033333 | L144: 0.0017485 | M144: 0.00087425 | N144: 0.0005828333333 | P144: 0.00078504 | Q144: 0.00061344
A145: 141 | B145: 1961-05-22 | C145: 1961 | D145: 0.0014757 | E145: 0.00079259 | F145: 0.0014918 | G145: 0.0014918 | H145: 0.0014757 | I145: 0.001525475 | J145: 0.00167845 | K145: 0.001759938095 | L145: 0.00179769 | M145: 0.000898845 | N145: 0.00059923 | P145: 0.00079259 | Q145: 0.000633252381
A146: 142 | B146: 1961-05-23 | C146: 1961 | D146: 0.0014439 | E146: 0.00079942 | F146: 0.0014596 | G146: 0.0014596 | H146: 0.0014439 | I146: 0.001492425 | J146: =AVERAGE(H133:H146) -> 0.001655271429 | K146: 0.001731057143 | L146: 0.001778593333 | M146: 0.00092291 | N146: 0.0006152733333 | P146: 0.00079942 | Q146: 0.0006520852381
A147: 143 | B147: 1961-05-24 | C147: 1961 | D147: 0.0014131 | E147: 0.00080559 | F147: 0.0014284 | G147: 0.0014284 | H147: 0.0014131 | I147: 0.00146025 | J147: 0.001632678571 | K147: 0.001702904762 | L147: 0.001760066667 | M147: 0.0009464616667 | N147: 0.0006309744444 | P147: 0.00080559 | Q147: 0.0006699771429
A148: 144 | B148: 1961-05-25 | C148: 1961 | D148: 0.0013832 | E148: 0.0008111 | F148: 0.001398 | G148: 0.001398 | H148: 0.0013832 | I148: 0.001428975 | J148: 0.0016006 | K148: 0.001675471429 | L148: 0.0017421 | M148: 0.000969515 | N148: 0.0006463433333 | P148: 0.0008111 | Q148: 0.0006869619048
A149: 145 | B149: 1961-05-26 | C149: 1961 | D149: 0.0013542 | E149: 0.000816 | F149: 0.0013686 | G149: 0.0013686 | H149: 0.0013542 | I149: 0.0013986 | J149: 0.001565778571 | K149: 0.001648742857 | L149: 0.001724683333 | M149: 0.000992085 | N149: 0.00066139 | P149: 0.000816 | Q149: 0.000703072381
A150: 146 | B150: 1961-05-27 | C150: 1961 | D150: 0.0013259 | E150: 0.0008203 | F150: 0.0013399 | G150: 0.0013399 | H150: 0.0013259 | I150: 0.0013691 | J150: 0.001531921429 | K150: 0.001622695238 | L150: 0.00170779 | M150: 0.001014183333 | N150: 0.0006761222222 | P150: 0.0008203 | Q150: 0.0007183395238
A151: 147 | B151: 1961-05-28 | C151: 1961 | D151: 0.0012984 | E151: 0.00082401 | F151: 0.0013121 | G151: 0.0013121 | H151: 0.0012984 | I151: 0.001340425 | J151: 0.001498928571 | K151: 0.001596447619 | L151: 0.001691403333 | M151: 0.001035823333 | N151: 0.0006905488889 | P151: 0.00082401 | Q151: 0.000732422381
A152: 148 | B152: 1961-05-29 | C152: 1961 | D152: 0.0012715 | E152: 0.00082712 | F152: 0.0012849 | G152: 0.0012849 | H152: 0.0012715 | I152: 0.0013125 | J152: 0.001466764286 | K152: 0.001570880952 | L152: 0.0016755 | M152: 0.001057015 | N152: 0.0007046766667 | P152: 0.00082712 | Q152: 0.0007457133333
A153: 149 | B153: 1961-05-30 | C153: 1961 | D153: 0.0012452 | E153: 0.00082965 | F153: 0.0012583 | G153: 0.0012583 | H153: 0.0012452 | I153: 0.00128525 | J153: 0.001435414286 | K153: =AVERAGE(H133:H153) -> 0.001545966667 | L153: 0.00166006 | M153: 0.001077768333 | N153: 0.0007185122222 | P153: 0.00082965 | Q153: =AVERAGE(P133:P153) -> 0.0007582414286
A154: 150 | B154: 1961-05-31 | C154: 1961 | D154: 0.0012195 | E154: 0.00083164 | F154: 0.0012323 | G154: 0.0012323 | H154: 0.0012195 | I154: 0.00125865 | J154: 0.001404864286 | K154: 0.001521685714 | L154: 0.001630453333 | M154: 0.001098093333 | N154: 0.0007320622222 | P154: 0.00083164 | Q154: 0.0007700347619
A155: 151 | B155: 1961-06-01 | C155: 1961 | D155: 0.0011944 | E155: 0.00083308 | F155: 0.0012069 | G155: 0.0012069 | H155: 0.0011944 | I155: 0.00123265 | J155: 0.001375085714 | K155: 0.001491309524 | L155: 0.00160192 | M155: 0.001118 | N155: 0.0007453333333 | P155: 0.00083308 | Q155: 0.0007789138095
A156: 152 | B156: 1961-06-02 | C156: 1961 | D156: 0.0011698 | E156: 0.00083398 | F156: 0.001182 | G156: 0.001182 | H156: 0.0011698 | I156: 0.001207225 | J156: 0.001346064286 | K156: 0.001459314286 | L156: 0.001574103333 | M156: 0.001137496667 | N156: 0.0007583311111 | P156: 0.00083398 | Q156: 0.0007864038095
A157: 153 | B157: 1961-06-03 | C157: 1961 | D157: 0.0011456 | E157: 0.00083435 | F157: 0.0011576 | G157: 0.0011576 | H157: 0.0011456 | I157: 0.001182325 | J157: 0.001317764286 | K157: 0.001428157143 | L157: 0.00154698 | M157: 0.00115659 | N157: 0.00077106 | P157: 0.00083435 | Q157: 0.0007931457143
A158: 154 | B158: 1961-06-04 | C158: 1961 | D158: 0.001122 | E158: 0.00083423 | F158: 0.0011337 | G158: 0.0011337 | H158: 0.001122 | I158: 0.00115795 | J158: 0.001290171429 | K158: 0.001397761905 | L158: 0.00152053 | M158: 0.00117529 | N158: =AVERAGE(H69:H158) -> 0.0007835266667 | P158: 0.00083423 | Q158: 0.0007991685714
A159: 155 | B159: 1961-06-05 | C159: 1961 | D159: 0.0010988 | E159: 0.00083364 | F159: 0.0011103 | G159: 0.0011103 | H159: 0.0010988 | I159: 0.00113405 | J159: 0.00126325 | K159: 0.001368095238 | L159: 0.001494726667 | M159: 0.001193603333 | N159: 0.0007957355556 | P159: 0.00083364 | Q159: 0.0008045004762
A160: 156 | B160: 1961-06-06 | C160: 1961 | D160: 0.0010761 | E160: 0.0008326 | F160: 0.0010874 | G160: 0.0010874 | H160: 0.0010761 | I160: 0.001110625 | J160: 0.001236978571 | K160: 0.001339142857 | L160: 0.001468943333 | M160: 0.001211538333 | N160: 0.0008076922222 | P160: 0.0008326 | Q160: 0.0008091680952
A161: 157 | B161: 1961-06-07 | C161: 1961 | D161: 0.001054 | E161: 0.00083118 | F161: 0.0010649 | G161: 0.0010649 | H161: 0.001054 | I161: 0.001087725 | J161: 0.001211328571 | K161: 0.001310895238 | L161: 0.001443796667 | M161: 0.001229105 | N161: 0.0008194033333 | P161: 0.00083118 | Q161: 0.0008132009524
A162: 158 | B162: 1961-06-08 | C162: 1961 | D162: 0.0010324 | E162: 0.00082941 | F162: 0.0010431 | G162: 0.0010431 | H162: 0.0010324 | I162: 0.001065325 | J162: 0.001186271429 | K162: 0.001283328571 | L162: =AVERAGE(H133:H162) -> 0.001419263333 | M162: 0.001246311667 | N162: 0.0008308744444 | P162: 0.00082941 | Q162: 0.0008166266667
A163: 159 | B163: 1961-06-09 | C163: 1961 | D163: 0.0010113 | E163: 0.00082728 | F163: 0.0010218 | G163: 0.0010218 | H163: 0.0010113 | I163: 0.00104345 | J163: 0.001161778571 | K163: 0.001256433333 | L163: 0.001395326667 | M163: 0.001263166667 | N163: 0.0008421111111 | P163: 0.00082728 | Q163: 0.0008194719048
A164: 160 | B164: 1961-06-10 | C164: 1961 | D164: 0.00099077 | E164: 0.00082478 | F164: 0.001001 | G164: 0.001001 | H164: 0.00099077 | I164: 0.0010221175 | J164: 0.001137840714 | K164: 0.00123019381 | L164: 0.001367275667 | M164: 0.0012796795 | N164: 0.0008531196667 | P164: 0.00082478 | Q164: 0.0008217614286
A165: 161 | B165: 1961-06-11 | C165: 1961 | D165: 0.00097058 | E165: 0.00082194 | F165: 0.00098061 | G165: 0.00098061 | H165: 0.00097058 | I165: 0.0010012625 | J165: 0.001114425 | K165: 0.001204588095 | L165: 0.001338238333 | M165: 0.001295855833 | N165: 0.0008639038889 | P165: 0.00082194 | Q165: 0.0008235185714
A166: 162 | B166: 1961-06-12 | C166: 1961 | D166: 0.0010026 | E166: 0.00082318 | F166: 0.0010144 | G166: 0.0010144 | H166: 0.0010026 | I166: 0.0009938125 | J166: 0.001095217857 | K166: 0.001182059524 | L166: 0.001311661667 | M166: 0.001312565833 | N166: 0.0008750438889 | P166: 0.00082318 | Q166: 0.0008249752381
A167: 163 | B167: 1961-06-13 | C167: 1961 | D167: 0.00098071 | E167: 0.00082047 | F167: 0.00099097 | G167: 0.00099097 | H167: 0.00098071 | I167: 0.000986165 | J167: 0.001076325714 | K167: 0.001160002857 | L167: 0.001285675333 | M167: 0.001328911 | N167: 0.0008859406667 | P167: 0.00082047 | Q167: 0.000825977619
A168: 164 | B168: 1961-06-14 | C168: 1961 | D168: 0.00096055 | E168: 0.00081743 | F168: 0.00097054 | G168: 0.00097054 | H168: 0.00096055 | I168: 0.00097861 | J168: 0.001057829286 | K168: 0.001138452857 | L168: 0.001260300333 | M168: 0.001344920167 | N168: 0.0008966134444 | P168: 0.00081743 | Q168: 0.0008265414286
A169: 165 | B169: 1961-06-15 | C169: 1961 | D169: 0.00099315 | E169: 0.0008173 | F169: 0.001005 | G169: 0.001005 | H169: 0.00099315 | I169: 0.0009842525 | J169: 0.001043454286 | K169: 0.001119879048 | L169: 0.001237268667 | M169: 0.001361472667 | N169: 0.0009076484444 | P169: 0.0008173 | Q169: 0.0008268366667
A170: 166 | B170: 1961-06-16 | C170: 1961 | D170: 0.00097137 | E170: 0.00081461 | F170: 0.00098144 | G170: 0.00098144 | H170: 0.00097137 | I170: 0.000976445 | J170: 0.001029280714 | K170: 0.001101649048 | L170: 0.001214741 | M170: 0.001377662167 | N170: 0.0009184414444 | P170: 0.00081461 | Q170: 0.0008267704762
A171: 167 | B171: 1961-06-17 | C171: 1961 | D171: 0.00095156 | E171: 0.00081164 | F171: 0.00096138 | G171: 0.00096138 | H171: 0.00095156 | I171: 0.0009691575 | J171: 0.001015420714 | K171: 0.001083823333 | L171: 0.001192749667 | M171: 0.0013935215 | N171: 0.0009290143333 | P171: 0.00081164 | Q171: 0.0008263580952
A172: 168 | B172: 1961-06-18 | C172: 1961 | D172: 0.00093225 | E172: 0.0008084 | F172: 0.00094182 | G172: 0.00094182 | H172: 0.00093225 | I172: 0.0009620825 | J172: 0.001001867143 | K172: 0.001066387619 | L172: 0.001171288 | M172: 0.001409059 | N172: 0.0009393726667 | P172: 0.0008084 | Q172: 0.0008256147619
A173: 169 | B173: 1961-06-19 | C173: 1961 | D173: 0.0009134 | E173: 0.00080488 | F173: 0.00092276 | G173: 0.00092276 | H173: 0.0009134 | I173: 0.000942145 | J173: 0.0009886242857 | K173: 0.001049335238 | L173: 0.001150341333 | M173: 0.001424282333 | N173: 0.0009495215556 | P173: 0.00080488 | Q173: 0.0008245557143
A174: 170 | B174: 1961-06-20 | C174: 1961 | D174: 0.00089496 | E174: 0.00080109 | F174: 0.00090412 | G174: 0.00090412 | H174: 0.00089496 | I174: 0.0009230425 | J174: 0.0009756857143 | K174: 0.001032657143 | L174: 0.001129896667 | M174: 0.001439198333 | N174: 0.0009594655556 | P174: 0.00080109 | Q174: 0.0008231957143
A175: 171 | B175: 1961-06-21 | C175: 1961 | D175: 0.0051489 | E175: 0.00093766 | F175: 0.0062949 | G175: 0.0062949 | H175: 0.0051489 | I175: 0.0019723775 | J175: 0.001268178571 | K175: 0.001219771429 | L175: 0.001252336667 | M175: 0.001525013333 | N175: 0.001016675556 | P175: 0.00093766 | Q175: 0.0008282442857
A176: 172 | B176: 1961-06-22 | C176: 1961 | D176: 0.004098 | E176: 0.00099121 | F176: 0.0041518 | G176: 0.0041518 | H176: 0.004098 | I176: 0.002763815 | J176: 0.00148715 | K176: 0.001358038095 | L176: 0.001340806667 | M176: 0.0015597 | N176: 0.001062208889 | P176: 0.00099121 | Q176: 0.0008357742857
A177: 173 | B177: 1961-06-23 | C177: 1961 | D177: 0.004082 | E177: 0.0010385 | F177: 0.0041531 | G177: 0.0041531 | H177: 0.004082 | I177: 0.003555965 | J177: 0.001706485714 | K177: 0.001496714286 | L177: 0.00142977 | M177: 0.001594918333 | N177: 0.001107564444 | P177: 0.0010385 | Q177: 0.0008455133333
A178: 174 | B178: 1961-06-24 | C178: 1961 | D178: 0.0039603 | E178: 0.0010821 | F178: 0.0040118 | G178: 0.0040118 | H178: 0.0039603 | I178: 0.0043223 | J178: 0.001918595 | K178: 0.001630747619 | L178: 0.001515673333 | M178: 0.001628886667 | N178: 0.001151567778 | P178: 0.0010821 | Q178: 0.0008573109524
A179: 175 | B179: 1961-06-25 | C179: 1961 | D179: 0.0038593 | E179: 0.0011229 | F179: 0.0039093 | G179: 0.0039093 | H179: 0.0038593 | I179: 0.0039999 | J179: 0.002124932143 | K179: 0.001761095238 | L179: 0.001599176667 | M179: 0.00166193 | N179: 0.001194448889 | P179: 0.0011229 | Q179: 0.0008710571429
A180: 176 | B180: 1961-06-26 | C180: 1961 | D180: 0.0037611 | E180: 0.0011609 | F180: 0.0038098 | G180: 0.0038098 | H180: 0.0037611 | I180: 0.003915675 | J180: 0.002321967857 | K180: 0.001887871429 | L180: 0.00168035 | M180: 0.00169407 | N180: 0.001236238889 | P180: 0.0011609 | Q180: 0.0008866409524
A181: 177 | B181: 1961-06-27 | C181: 1961 | D181: 0.0036658 | E181: 0.0011963 | F181: 0.003713 | G181: 0.003713 | H181: 0.0036658 | I181: 0.003811625 | J181: 0.00251376 | K181: 0.002011190476 | L181: 0.001759263333 | M181: 0.001725333333 | N181: 0.00127697 | P181: 0.0011963 | Q181: 0.00090396
A182: 178 | B182: 1961-06-28 | C182: 1961 | D182: 0.0035735 | E182: 0.0012292 | F182: 0.0036192 | G182: 0.0036192 | H182: 0.0035735 | I182: 0.003714925 | J182: 0.002700399286 | K182: 0.002131166667 | L182: 0.001835996667 | M182: 0.001755748333 | N182: 0.001316675556 | P182: 0.0012292 | Q182: 0.0009229133333
A183: 179 | B183: 1961-06-29 | C183: 1961 | D183: 0.0034838 | E183: 0.0012598 | F183: 0.0035283 | G183: 0.0035283 | H183: 0.0034838 | I183: 0.00362105 | J183: 0.002878302857 | K183: 0.0022479 | L183: 0.001910616667 | M183: 0.001785338333 | N183: 0.001355384444 | P183: 0.0012598 | Q183: 0.0009434080952
A184: 180 | B184: 1961-06-30 | C184: 1961 | D184: 0.0033966 | E184: 0.001288 | F184: 0.0034398 | G184: 0.0034398 | H184: 0.0033966 | I184: 0.003529925 | J184: 0.003051533571 | K184: 0.002361485714 | L184: 0.001983186667 | M184: 0.00180682 | N184: 0.001393124444 | P184: 0.001288 | Q184: 0.0009653471429
A185: 181 | B185: 1961-07-01 | C185: 1961 | D185: 0.0033118 | E185: 0.001314 | F185: 0.0033538 | G185: 0.0033538 | H185: 0.0033118 | I185: 0.003441425 | J185: 0.003220122143 | K185: 0.002472010952 | L185: 0.002053766667 | M185: 0.001827843333 | N185: 0.001429922222 | P185: 0.001314 | Q185: 0.0009886433333
A186: 182 | B186: 1961-07-02 | C186: 1961 | D186: 0.0032296 | E186: 0.0013379 | F186: 0.0032703 | G186: 0.0032703 | H186: 0.0032296 | I186: 0.00335545 | J186: 0.003384218571 | K186: 0.002579583333 | L186: 0.002122426667 | M186: 0.001848265 | N186: 0.001465806667 | P186: 0.0013379 | Q186: 0.001013212857
A187: 183 | B187: 1961-07-03 | C187: 1961 | D187: 0.00315 | E187: 0.00136 | F187: 0.0031894 | G187: 0.0031894 | H187: 0.00315 | I187: 0.003272 | J187: 0.003543975714 | K187: 0.002681840476 | L187: 0.00218924 | M187: 0.00186811 | N187: 0.001500806667 | P187: 0.00136 | Q187: 0.001038775714
A188: 184 | B188: 1961-07-04 | C188: 1961 | D188: 0.0030728 | E188: 0.0013801 | F188: 0.0031111 | G188: 0.0031111 | H188: 0.0030728 | I188: 0.00319105 | J188: 0.003699535714 | K188: 0.00278146381 | L188: 0.002254266667 | M188: 0.001887398333 | N188: 0.001534948889 | P188: 0.0013801 | Q188: 0.001065424762
A189: 185 | B189: 1961-07-05 | C189: 1961 | D189: 0.0029978 | E189: 0.0013984 | F189: 0.0030349 | G189: 0.0030349 | H189: 0.0029978 | I189: 0.00311255 | J189: 0.003545885714 | K189: 0.002878475714 | L189: 0.002317566667 | M189: 0.001906146667 | N189: 0.001568257778 | P189: 0.0013984 | Q189: 0.00109309
A190: 186 | B190: 1961-07-06 | C190: 1961 | D190: 0.002925 | E190: 0.001415 | F190: 0.002961 | G190: 0.002961 | H190: 0.002925 | I190: 0.0030364 | J190: 0.0034621 | K190: 0.002970468571 | L190: 0.002379196667 | M190: 0.00192407 | N190: 0.001600757778 | P190: 0.001415 | Q190: 0.001121551905
A191: 187 | B191: 1961-07-07 | C191: 1961 | D191: 0.0028547 | E191: 0.00143 | F191: 0.0028895 | G191: 0.0028895 | H191: 0.0028547 | I191: 0.002962575 | J191: 0.003374435714 | K191: 0.003060150952 | L191: 0.00243922 | M191: 0.001941508333 | N191: 0.001632476667 | P191: 0.00143 | Q191: 0.00115085619
A192: 188 | B192: 1961-07-08 | C192: 1961 | D192: 0.0027865 | E192: 0.0014435 | F192: 0.0028202 | G192: 0.0028202 | H192: 0.0027865 | I192: 0.002891 | J192: 0.003290592857 | K192: 0.003147529048 | L192: 0.00249769 | M192: =AVERAGE(H133:H192) -> 0.001958476667 | N192: 0.001663437778 | P192: 0.0014435 | Q192: 0.001180944762
A193: 189 | B193: 1961-07-09 | C193: 1961 | D193: 0.0027205 | E193: 0.0014556 | F193: 0.0027531 | G193: 0.0027531 | H193: 0.0027205 | I193: 0.002821675 | J193: 0.00320925 | K193: 0.00323268381 | L193: 0.002554663333 | M193: 0.001974995 | N193: 0.001693665556 | P193: 0.0014556 | Q193: 0.00121176381
A194: 190 | B194: 1961-07-10 | C194: 1961 | D194: 0.0026566 | E194: 0.0014663 | F194: 0.0026882 | G194: 0.0026882 | H194: 0.0026566 | I194: 0.002754575 | J194: 0.003130357143 | K194: 0.003315693333 | L194: 0.002610191 | M194: 0.001988733333 | N194: 0.001723183333 | P194: 0.0014663 | Q194: 0.00124326
A195: 191 | B195: 1961-07-11 | C195: 1961 | D195: 0.0025946 | E195: 0.0014757 | F195: 0.0026253 | G195: 0.0026253 | H195: 0.0025946 | I195: 0.00268955 | J195: 0.003053842857 | K195: 0.003396628571 | L195: 0.002664325 | M195: 0.002001281667 | N195: 0.001752012222 | P195: 0.0014757 | Q195: 0.001275384286
A196: 192 | B196: 1961-07-12 | C196: 1961 | D196: 0.0025347 | E196: 0.001484 | F196: 0.0025643 | G196: 0.0025643 | H196: 0.0025347 | I196: 0.0026266 | J196: 0.002979642857 | K196: 0.003272142857 | L196: 0.002715395 | M196: 0.002013528333 | N196: 0.001780175556 | P196: 0.001484 | Q196: 0.001301400476
A197: 193 | B197: 1961-07-13 | C197: =YEAR(B197) -> 1961 | D197: 0.0024766 | E197: 0.0014911 | F197: 0.0025054 | G197: =F197 -> 0.0025054 | H197: =D197 -> 0.0024766 | I197: 0.002565625 | J197: 0.0029077 | K197: 0.003194933333 | L197: 0.002765258 | M197: 0.002025466667 | N197: 0.001807693333 | P197: =E197 -> 0.0014911 | Q197: 0.001325204762
A198: 194 | B198: 1961-07-14 | C198: 1961 | D198: 0.0024202 | E198: 0.001497 | F198: 0.0024482 | G198: 0.0024482 | H198: 0.0024202 | I198: 0.002506525 | J198: 0.002837957143 | K198: 0.0031158 | L198: 0.002813913 | M198: 0.002037106667 | N198: 0.001834584444 | P198: 0.001497 | Q198: 0.001347038095
A199: 195 | B199: 1961-07-15 | C199: 1961 | D199: 0.0023794 | E199: 0.0015019 | F199: 0.0024092 | G199: 0.0024092 | H199: 0.0023794 | I199: 0.002452725 | J199: 0.002771357143 | K199: 0.003040519048 | L199: 0.002860121333 | M199: 0.002048695 | N199: 0.001861022222 | P199: 0.0015019 | Q199: 0.001367028571
A200: 196 | B200: 1961-07-16 | C200: 1961 | D200: 0.0023375 | E200: 0.0015058 | F200: 0.0023669 | G200: 0.0023669 | H200: 0.0023375 | I200: =AVERAGE(H197:H200) -> 0.002403425 | J200: 0.002707635714 | K200: 0.002968052381 | L200: 0.002905659 | M200: 0.0020602 | N200: 0.001886994444 | P200: 0.0015058 | Q200: 0.001385261905
... 4300 more rows

Sheet PWC Summary
A1: Variable Volume Water Model Version 1.02000000000000
A3: =" *******************************************" -> *******************************************
A4: ="Performed on: "& TEXT(NOW(),"mm/dd/yyyy")&" at "&TEXT(NOW(),"hh:mm") -> Performed on: 03/08/2020 at 21:10
A6: ="Peak 1-in-15.0 = "&TEXT('Daily Calcs'!$AD12,"0.00E+00")&" ppb" -> Peak 1-in-15.0 = 1.61E+01 ppb
A7: ="Chronic 1-in-15.0 = "&TEXT('Daily Calcs'!$AF12,"0.00E+00")&" ppb" -> Chronic 1-in-15.0 = 1.62E+00 ppb
A8: ="Simulation Avg = "&TEXT('Daily Calcs'!$AG14,"0.00E+00")&" ppb" -> Simulation Avg = 9.43E-01 ppb
A9: ="4-d avg 1-in-15.0 = "&TEXT('Daily Calcs'!$AG12,"0.00E+00")&" ppb" -> 4-d avg 1-in-15.0 = 9.82E+00 ppb
A10: ="21-d avg 1-in-15.0 = "&TEXT('Daily Calcs'!$AH12,"0.00E+00")&" ppb" -> 21-d avg 1-in-15.0 = 8.82E+00 ppb
A11: ="60-d avg 1-in-15.0 = "&TEXT('Daily Calcs'!$AI12,"0.00E+00")&" ppb" -> 60-d avg 1-in-15.0 = 6.76E+00 ppb
A12: ="90-d avg 1-in-15.0 = "&TEXT('Daily Calcs'!$AJ12,"0.00E+00")&" ppb" -> 90-d avg 1-in-15.0 = 5.40E+00 ppb
A13: ="1-d avg 1-in-15.0 = "&TEXT('Daily Calcs'!$AE12,"0.00E+00")&" ppb" -> 1-d avg 1-in-15.0 = 1.11E+01 ppb
A14: ="Benthic Pore Water Peak 1-in-15.0 = "&TEXT('Daily Calcs'!AK12,"0.00E+00")&" ppb" -> Benthic Pore Water Peak 1-in-15.0 = 6.53E+00 ppb
A15: ="Benthic Pore Water 21-d avg 1-in-15.0 = "&TEXT('Daily Calcs'!AL12,"0.00E+00")&" ppb" -> Benthic Pore Water 21-d avg 1-in-15.0 = 6.42E+00 ppb
A16: ="Benthic Conversion Factor = "&TEXT('Daily Calcs'!AF16,"0.00")&" -Pore water (ug/L) to (total mass ug)/(dry sed mass kg)" -> Benthic Conversion Factor = 20.40 -Pore water (ug/L) to (total mass ug)/(dry sed mass kg)
A17: ="Benthic Mass Fraction in Pore Water = "&TEXT('Daily Calcs'!AF17,"0.00E+00") -> Benthic Mass Fraction in Pore Water = 1.82E-01
A19: YEAR Peak 4-day 21-day 60-day 90-day Yearly Avg Benthic Pk Benthic 21-day Daily Avg
A20: =" 1 "&TEXT('Daily Calcs'!$S4*1000,"0.00E+00")&" "&TEXT('Daily Calcs'!$V4*1000,"0.00E+00")&" "&TEXT('Daily Calcs'!$W4*1000,"0.00E+00")&" "&TEXT('Daily Calcs'!$X4*1000,"0.00E+00")&" "&TEXT('Daily Calcs'!$Y4*1000,"0.00E+00")&" "&TEXT('Daily Calcs'!$U4*1000,"0.00E+00")&" "&TEXT('Daily Calcs'!$Z4*1000,"0.00E+00")&" "&TEXT('Daily Calcs'!$AA4*1000,"0.00E+00")&" "&TEXT('Daily Calcs'!$T4*1000,"0.00E+00") -> 1 6.29E+00 4.32E+00 3.40E+00 2.37E+00 2.01E+00 8.45E-01 1.51E+00 1.49E+00 5.15E+00
A21: =" 2 "&TEXT('Daily Calcs'!$S5*1000,"0.00E+00")&" "&TEXT('Daily Calcs'!$V5*1000,"0.00E+00")&" "&TEXT('Daily Calcs'!$W5*1000,"0.00E+00")&" "&TEXT('Daily Calcs'!$X5*1000,"0.00E+00")&" "&TEXT('Daily Calcs'!$Y5*1000,"0.00E+00")&" "&TEXT('Daily Calcs'!$U5*1000,"0.00E+00")&" "&TEXT('Daily Calcs'!$Z5*1000,"0.00E+00")&" "&TEXT('Daily Calcs'!$AA5*1000,"0.00E+00")&" "&TEXT('Daily Calcs'!$T5*1000,"0.00E+00") -> 2 3.72E+00 3.19E+00 2.46E+00 1.72E+00 1.53E+00 6.12E-01 1.18E+00 1.17E+00 3.46E+00
A22: =" 3 "&TEXT('Daily Calcs'!$S6*1000,"0.00E+00")&" "&TEXT('Daily Calcs'!$V6*1000,"0.00E+00")&" "&TEXT('Daily Calcs'!$W6*1000,"0.00E+00")&" "&TEXT('Daily Calcs'!$X6*1000,"0.00E+00")&" "&TEXT('Daily Calcs'!$Y6*1000,"0.00E+00")&" "&TEXT('Daily Calcs'!$U6*1000,"0.00E+00")&" "&TEXT('Daily Calcs'!$Z6*1000,"0.00E+00")&" "&TEXT('Daily Calcs'!$AA6*1000,"0.00E+00")&" "&TEXT('Daily Calcs'!$T6*1000,"0.00E+00") -> 3 2.46E+00 2.29E+00 1.95E+00 1.73E+00 1.40E+00 5.69E-01 1.19E+00 1.18E+00 2.40E+00
A23: =" 4 "&TEXT('Daily Calcs'!$S7*1000,"0.00E+00")&" "&TEXT('Daily Calcs'!$V7*1000,"0.00E+00")&" "&TEXT('Daily Calcs'!$W7*1000,"0.00E+00")&" "&TEXT('Daily Calcs'!$X7*1000,"0.00E+00")&" "&TEXT('Daily Calcs'!$Y7*1000,"0.00E+00")&" "&TEXT('Daily Calcs'!$U7*1000,"0.00E+00")&" "&TEXT('Daily Calcs'!$Z7*1000,"0.00E+00")&" "&TEXT('Daily Calcs'!$AA7*1000,"0.00E+00")&" "&TEXT('Daily Calcs'!$T7*1000,"0.00E+00") -> 4 6.23E+00 4.37E+00 3.52E+00 2.54E+00 2.03E+00 9.23E-01 1.56E+00 1.55E+00 5.19E+00
A24: =" 5 "&TEXT('Daily Calcs'!$S8*1000,"0.00E+00")&" "&TEXT('Daily Calcs'!$V8*1000,"0.00E+00")&" "&TEXT('Daily Calcs'!$W8*1000,"0.00E+00")&" "&TEXT('Daily Calcs'!$X8*1000,"0.00E+00")&" "&TEXT('Daily Calcs'!$Y8*1000,"0.00E+00")&" "&TEXT('Daily Calcs'!$U8*1000,"0.00E+00")&" "&TEXT('Daily Calcs'!$Z8*1000,"0.00E+00")&" "&TEXT('Daily Calcs'!$AA8*1000,"0.00E+00")&" "&TEXT('Daily Calcs'!$T8*1000,"0.00E+00") -> 5 2.13E+00 2.02E+00 1.65E+00 1.16E+00 1.00E+00 5.13E-01 6.26E-01 6.14E-01 2.10E+00
A25: =" 6 "&TEXT('Daily Calcs'!$S9*1000,"0.00E+00")&" "&TEXT('Daily Calcs'!$V9*1000,"0.00E+00")&" "&TEXT('Daily Calcs'!$W9*1000,"0.00E+00")&" "&TEXT('Daily Calcs'!$X9*1000,"0.00E+00")&" "&TEXT('Daily Calcs'!$Y9*1000,"0.00E+00")&" "&TEXT('Daily Calcs'!$U9*1000,"0.00E+00")&" "&TEXT('Daily Calcs'!$Z9*1000,"0.00E+00")&" "&TEXT('Daily Calcs'!$AA9*1000,"0.00E+00")&" "&TEXT('Daily Calcs'!$T9*1000,"0.00E+00") -> 6 3.83E+00 3.56E+00 3.03E+00 2.50E+00 2.15E+00 1.08E+00 1.82E+00 1.81E+00 3.72E+00
A26: =" 7 "&TEXT('Daily Calcs'!$S10*1000,"0.00E+00")&" "&TEXT('Daily Calcs'!$V10*1000,"0.00E+00")&" "&TEXT('Daily Calcs'!$W10*1000,"0.00E+00")&" "&TEXT('Daily Calcs'!$X10*1000,"0.00E+00")&" "&TEXT('Daily Calcs'!$Y10*1000,"0.00E+00")&" "&TEXT('Daily Calcs'!$U10*1000,"0.00E+00")&" "&TEXT('Daily Calcs'!$Z10*1000,"0.00E+00")&" "&TEXT('Daily Calcs'!$AA10*1000,"0.00E+00")&" "&TEXT('Daily Calcs'!$T10*1000,"0.00E+00") -> 7 3.40E+00 2.78E+00 2.15E+00 1.80E+00 1.80E+00 7.92E-01 1.19E+00 1.17E+00 3.09E+00
A27: =" 8 "&TEXT('Daily Calcs'!$S11*1000,"0.00E+00")&" "&TEXT('Daily Calcs'!$V11*1000,"0.00E+00")&" "&TEXT('Daily Calcs'!$W11*1000,"0.00E+00")&" "&TEXT('Daily Calcs'!$X11*1000,"0.00E+00")&" "&TEXT('Daily Calcs'!$Y11*1000,"0.00E+00")&" "&TEXT('Daily Calcs'!$U11*1000,"0.00E+00")&" "&TEXT('Daily Calcs'!$Z11*1000,"0.00E+00")&" "&TEXT('Daily Calcs'!$AA11*1000,"0.00E+00")&" "&TEXT('Daily Calcs'!$T11*1000,"0.00E+00") -> 8 8.09E+00 6.15E+00 4.95E+00 3.61E+00 3.16E+00 1.13E+00 2.58E+00 2.55E+00 7.03E+00
A28: =" 9 "&TEXT('Daily Calcs'!$S12*1000,"0.00E+00")&" "&TEXT('Daily Calcs'!$V12*1000,"0.00E+00")&" "&TEXT('Daily Calcs'!$W12*1000,"0.00E+00")&" "&TEXT('Daily Calcs'!$X12*1000,"0.00E+00")&" "&TEXT('Daily Calcs'!$Y12*1000,"0.00E+00")&" "&TEXT('Daily Calcs'!$U12*1000,"0.00E+00")&" "&TEXT('Daily Calcs'!$Z12*1000,"0.00E+00")&" "&TEXT('Daily Calcs'!$AA12*1000,"0.00E+00")&" "&TEXT('Daily Calcs'!$T12*1000,"0.00E+00") -> 9 5.58E+00 4.82E+00 3.86E+00 2.84E+00 2.41E+00 8.81E-01 3.00E+00 2.91E+00 5.22E+00
A29: =" 10 "&TEXT('Daily Calcs'!$S13*1000,"0.00E+00")&" "&TEXT('Daily Calcs'!$V13*1000,"0.00E+00")&" "&TEXT('Daily Calcs'!$W13*1000,"0.00E+00")&" "&TEXT('Daily Calcs'!$X13*1000,"0.00E+00")&" "&TEXT('Daily Calcs'!$Y13*1000,"0.00E+00")&" "&TEXT('Daily Calcs'!$U13*1000,"0.00E+00")&" "&TEXT('Daily Calcs'!$Z13*1000,"0.00E+00")&" "&TEXT('Daily Calcs'!$AA13*1000,"0.00E+00")&" "&TEXT('Daily Calcs'!$T13*1000,"0.00E+00") -> 10 2.68E+00 2.51E+00 2.11E+00 1.67E+00 1.39E+00 6.86E-01 1.12E+00 1.11E+00 2.62E+00
A30: =" 11 "&TEXT('Daily Calcs'!$S14*1000,"0.00E+00")&" "&TEXT('Daily Calcs'!$V14*1000,"0.00E+00")&" "&TEXT('Daily Calcs'!$W14*1000,"0.00E+00")&" "&TEXT('Daily Calcs'!$X14*1000,"0.00E+00")&" "&TEXT('Daily Calcs'!$Y14*1000,"0.00E+00")&" "&TEXT('Daily Calcs'!$U14*1000,"0.00E+00")&" "&TEXT('Daily Calcs'!$Z14*1000,"0.00E+00")&" "&TEXT('Daily Calcs'!$AA14*1000,"0.00E+00")&" "&TEXT('Daily Calcs'!$T14*1000,"0.00E+00") -> 11 8.94E+00 7.01E+00 6.22E+00 4.84E+00 3.88E+00 1.27E+00 3.50E+00 3.45E+00 7.81E+00
A31: =" 12 "&TEXT('Daily Calcs'!$S15*1000,"0.00E+00")&" "&TEXT('Daily Calcs'!$V15*1000,"0.00E+00")&" "&TEXT('Daily Calcs'!$W15*1000,"0.00E+00")&" "&TEXT('Daily Calcs'!$X15*1000,"0.00E+00")&" "&TEXT('Daily Calcs'!$Y15*1000,"0.00E+00")&" "&TEXT('Daily Calcs'!$U15*1000,"0.00E+00")&" "&TEXT('Daily Calcs'!$Z15*1000,"0.00E+00")&" "&TEXT('Daily Calcs'!$AA15*1000,"0.00E+00")&" "&TEXT('Daily Calcs'!$T15*1000,"0.00E+00") -> 12 1.65E+01 1.00E+01 9.02E+00 6.89E+00 5.51E+00 1.64E+00 6.73E+00 6.62E+00 1.13E+01
A32: =" 13 "&TEXT('Daily Calcs'!$S16*1000,"0.00E+00")&" "&TEXT('Daily Calcs'!$V16*1000,"0.00E+00")&" "&TEXT('Daily Calcs'!$W16*1000,"0.00E+00")&" "&TEXT('Daily Calcs'!$X16*1000,"0.00E+00")&" "&TEXT('Daily Calcs'!$Y16*1000,"0.00E+00")&" "&TEXT('Daily Calcs'!$U16*1000,"0.00E+00")&" "&TEXT('Daily Calcs'!$Z16*1000,"0.00E+00")&" "&TEXT('Daily Calcs'!$AA16*1000,"0.00E+00")&" "&TEXT('Daily Calcs'!$T16*1000,"0.00E+00") -> 13 5.46E+00 5.04E+00 4.19E+00 3.56E+00 3.15E+00 1.05E+00 2.15E+00 2.12E+00 5.30E+00
A33: =" 14 "&TEXT('Daily Calcs'!$S17*1000,"0.00E+00")&" "&TEXT('Daily Calcs'!$V17*1000,"0.00E+00")&" "&TEXT('Daily Calcs'!$W17*1000,"0.00E+00")&" "&TEXT('Daily Calcs'!$X17*1000,"0.00E+00")&" "&TEXT('Daily Calcs'!$Y17*1000,"0.00E+00")&" "&TEXT('Daily Calcs'!$U17*1000,"0.00E+00")&" "&TEXT('Daily Calcs'!$Z17*1000,"0.00E+00")&" "&TEXT('Daily Calcs'!$AA17*1000,"0.00E+00")&" "&TEXT('Daily Calcs'!$T17*1000,"0.00E+00") -> 14 2.91E+00 2.67E+00 2.14E+00 1.89E+00 1.57E+00 6.73E-01 1.19E+00 1.17E+00 2.81E+00
A34: =" 15 "&TEXT('Daily Calcs'!$S18*1000,"0.00E+00")&" "&TEXT('Daily Calcs'!$V18*1000,"0.00E+00")&" "&TEXT('Daily Calcs'!$W18*1000,"0.00E+00")&" "&TEXT('Daily Calcs'!$X18*1000,"0.00E+00")&" "&TEXT('Daily Calcs'!$Y18*1000,"0.00E+00")&" "&TEXT('Daily Calcs'!$U18*1000,"0.00E+00")&" "&TEXT('Daily Calcs'!$Z18*1000,"0.00E+00")&" "&TEXT('Daily Calcs'!$AA18*1000,"0.00E+00")&" "&TEXT('Daily Calcs'!$T18*1000,"0.00E+00") -> 15 5.55E+00 4.72E+00 3.96E+00 2.65E+00 2.32E+00 7.63E-01 1.57E+00 1.55E+00 5.02E+00
A35: =" 16 "&TEXT('Daily Calcs'!$S19*1000,"0.00E+00")&" "&TEXT('Daily Calcs'!$V19*1000,"0.00E+00")&" "&TEXT('Daily Calcs'!$W19*1000,"0.00E+00")&" "&TEXT('Daily Calcs'!$X19*1000,"0.00E+00")&" "&TEXT('Daily Calcs'!$Y19*1000,"0.00E+00")&" "&TEXT('Daily Calcs'!$U19*1000,"0.00E+00")&" "&TEXT('Daily Calcs'!$Z19*1000,"0.00E+00")&" "&TEXT('Daily Calcs'!$AA19*1000,"0.00E+00")&" "&TEXT('Daily Calcs'!$T19*1000,"0.00E+00") -> 16 6.64E+00 5.88E+00 4.82E+00 4.45E+00 3.80E+00 1.23E+00 3.80E+00 3.67E+00 6.29E+00
A36: =" 17 "&TEXT('Daily Calcs'!$S20*1000,"0.00E+00")&" "&TEXT('Daily Calcs'!$V20*1000,"0.00E+00")&" "&TEXT('Daily Calcs'!$W20*1000,"0.00E+00")&" "&TEXT('Daily Calcs'!$X20*1000,"0.00E+00")&" "&TEXT('Daily Calcs'!$Y20*1000,"0.00E+00")&" "&TEXT('Daily Calcs'!$U20*1000,"0.00E+00")&" "&TEXT('Daily Calcs'!$Z20*1000,"0.00E+00")&" "&TEXT('Daily Calcs'!$AA20*1000,"0.00E+00")&" "&TEXT('Daily Calcs'!$T20*1000,"0.00E+00") -> 17 3.85E+00 3.53E+00 2.82E+00 1.91E+00 1.53E+00 6.72E-01 1.14E+00 1.12E+00 3.73E+00
A37: =" 18 "&TEXT('Daily Calcs'!$S21*1000,"0.00E+00")&" "&TEXT('Daily Calcs'!$V21*1000,"0.00E+00")&" "&TEXT('Daily Calcs'!$W21*1000,"0.00E+00")&" "&TEXT('Daily Calcs'!$X21*1000,"0.00E+00")&" "&TEXT('Daily Calcs'!$Y21*1000,"0.00E+00")&" "&TEXT('Daily Calcs'!$U21*1000,"0.00E+00")&" "&TEXT('Daily Calcs'!$Z21*1000,"0.00E+00")&" "&TEXT('Daily Calcs'!$AA21*1000,"0.00E+00")&" "&TEXT('Daily Calcs'!$T21*1000,"0.00E+00") -> 18 3.10E+01 1.62E+01 1.38E+01 9.85E+00 7.66E+00 2.21E+00 9.04E+00 8.89E+00 2.19E+01
A38: =" 19 "&TEXT('Daily Calcs'!$S22*1000,"0.00E+00")&" "&TEXT('Daily Calcs'!$V22*1000,"0.00E+00")&" "&TEXT('Daily Calcs'!$W22*1000,"0.00E+00")&" "&TEXT('Daily Calcs'!$X22*1000,"0.00E+00")&" "&TEXT('Daily Calcs'!$Y22*1000,"0.00E+00")&" "&TEXT('Daily Calcs'!$U22*1000,"0.00E+00")&" "&TEXT('Daily Calcs'!$Z22*1000,"0.00E+00")&" "&TEXT('Daily Calcs'!$AA22*1000,"0.00E+00")&" "&TEXT('Daily Calcs'!$T22*1000,"0.00E+00") -> 19 3.70E+00 3.09E+00 2.51E+00 2.00E+00 1.74E+00 7.16E-01 1.13E+00 1.11E+00 3.40E+00
A39: =" 20 "&TEXT('Daily Calcs'!$S23*1000,"0.00E+00")&" "&TEXT('Daily Calcs'!$V23*1000,"0.00E+00")&" "&TEXT('Daily Calcs'!$W23*1000,"0.00E+00")&" "&TEXT('Daily Calcs'!$X23*1000,"0.00E+00")&" "&TEXT('Daily Calcs'!$Y23*1000,"0.00E+00")&" "&TEXT('Daily Calcs'!$U23*1000,"0.00E+00")&" "&TEXT('Daily Calcs'!$Z23*1000,"0.00E+00")&" "&TEXT('Daily Calcs'!$AA23*1000,"0.00E+00")&" "&TEXT('Daily Calcs'!$T23*1000,"0.00E+00") -> 20 4.17E+00 3.76E+00 3.02E+00 2.13E+00 1.81E+00 5.98E-01 1.63E+00 1.60E+00 4.00E+00
A40: =" 21 "&TEXT('Daily Calcs'!$S24*1000,"0.00E+00")&" "&TEXT('Daily Calcs'!$V24*1000,"0.00E+00")&" "&TEXT('Daily Calcs'!$W24*1000,"0.00E+00")&" "&TEXT('Daily Calcs'!$X24*1000,"0.00E+00")&" "&TEXT('Daily Calcs'!$Y24*1000,"0.00E+00")&" "&TEXT('Daily Calcs'!$U24*1000,"0.00E+00")&" "&TEXT('Daily Calcs'!$Z24*1000,"0.00E+00")&" "&TEXT('Daily Calcs'!$AA24*1000,"0.00E+00")&" "&TEXT('Daily Calcs'!$T24*1000,"0.00E+00") -> 21 1.11E+01 7.53E+00 5.76E+00 3.88E+00 3.01E+00 1.05E+00 2.49E+00 2.44E+00 8.84E+00
A41: =" 22 "&TEXT('Daily Calcs'!$S25*1000,"0.00E+00")&" "&TEXT('Daily Calcs'!$V25*1000,"0.00E+00")&" "&TEXT('Daily Calcs'!$W25*1000,"0.00E+00")&" "&TEXT('Daily Calcs'!$X25*1000,"0.00E+00")&" "&TEXT('Daily Calcs'!$Y25*1000,"0.00E+00")&" "&TEXT('Daily Calcs'!$U25*1000,"0.00E+00")&" "&TEXT('Daily Calcs'!$Z25*1000,"0.00E+00")&" "&TEXT('Daily Calcs'!$AA25*1000,"0.00E+00")&" "&TEXT('Daily Calcs'!$T25*1000,"0.00E+00") -> 22 3.85E+00 3.53E+00 2.88E+00 2.61E+00 2.40E+00 7.95E-01 1.49E+00 1.46E+00 3.71E+00
A42: =" 23 "&TEXT('Daily Calcs'!$S26*1000,"0.00E+00")&" "&TEXT('Daily Calcs'!$V26*1000,"0.00E+00")&" "&TEXT('Daily Calcs'!$W26*1000,"0.00E+00")&" "&TEXT('Daily Calcs'!$X26*1000,"0.00E+00")&" "&TEXT('Daily Calcs'!$Y26*1000,"0.00E+00")&" "&TEXT('Daily Calcs'!$U26*1000,"0.00E+00")&" "&TEXT('Daily Calcs'!$Z26*1000,"0.00E+00")&" "&TEXT('Daily Calcs'!$AA26*1000,"0.00E+00")&" "&TEXT('Daily Calcs'!$T26*1000,"0.00E+00") -> 23 3.19E+00 3.01E+00 2.49E+00 1.77E+00 1.38E+00 5.48E-01 1.01E+00 9.92E-01 3.14E+00
A43: =" 24 "&TEXT('Daily Calcs'!$S27*1000,"0.00E+00")&" "&TEXT('Daily Calcs'!$V27*1000,"0.00E+00")&" "&TEXT('Daily Calcs'!$W27*1000,"0.00E+00")&" "&TEXT('Daily Calcs'!$X27*1000,"0.00E+00")&" "&TEXT('Daily Calcs'!$Y27*1000,"0.00E+00")&" "&TEXT('Daily Calcs'!$U27*1000,"0.00E+00")&" "&TEXT('Daily Calcs'!$Z27*1000,"0.00E+00")&" "&TEXT('Daily Calcs'!$AA27*1000,"0.00E+00")&" "&TEXT('Daily Calcs'!$T27*1000,"0.00E+00") -> 24 7.68E+00 6.81E+00 5.58E+00 3.90E+00 3.45E+00 1.22E+00 3.86E+00 3.81E+00 7.28E+00
A44: =" 25 "&TEXT('Daily Calcs'!$S28*1000,"0.00E+00")&" "&TEXT('Daily Calcs'!$V28*1000,"0.00E+00")&" "&TEXT('Daily Calcs'!$W28*1000,"0.00E+00")&" "&TEXT('Daily Calcs'!$X28*1000,"0.00E+00")&" "&TEXT('Daily Calcs'!$Y28*1000,"0.00E+00")&" "&TEXT('Daily Calcs'!$U28*1000,"0.00E+00")&" "&TEXT('Daily Calcs'!$Z28*1000,"0.00E+00")&" "&TEXT('Daily Calcs'!$AA28*1000,"0.00E+00")&" "&TEXT('Daily Calcs'!$T28*1000,"0.00E+00") -> 25 5.49E+00 4.77E+00 3.79E+00 2.79E+00 2.34E+00 8.21E-01 1.86E+00 1.83E+00 5.16E+00
A45: =" 26 "&TEXT('Daily Calcs'!$S29*1000,"0.00E+00")&" "&TEXT('Daily Calcs'!$V29*1000,"0.00E+00")&" "&TEXT('Daily Calcs'!$W29*1000,"0.00E+00")&" "&TEXT('Daily Calcs'!$X29*1000,"0.00E+00")&" "&TEXT('Daily Calcs'!$Y29*1000,"0.00E+00")&" "&TEXT('Daily Calcs'!$U29*1000,"0.00E+00")&" "&TEXT('Daily Calcs'!$Z29*1000,"0.00E+00")&" "&TEXT('Daily Calcs'!$AA29*1000,"0.00E+00")&" "&TEXT('Daily Calcs'!$T29*1000,"0.00E+00") -> 26 6.44E+00 5.64E+00 4.75E+00 3.19E+00 2.63E+00 9.56E-01 4.14E+00 4.00E+00 6.06E+00
A46: =" 27 "&TEXT('Daily Calcs'!$S30*1000,"0.00E+00")&" "&TEXT('Daily Calcs'!$V30*1000,"0.00E+00")&" "&TEXT('Daily Calcs'!$W30*1000,"0.00E+00")&" "&TEXT('Daily Calcs'!$X30*1000,"0.00E+00")&" "&TEXT('Daily Calcs'!$Y30*1000,"0.00E+00")&" "&TEXT('Daily Calcs'!$U30*1000,"0.00E+00")&" "&TEXT('Daily Calcs'!$Z30*1000,"0.00E+00")&" "&TEXT('Daily Calcs'!$AA30*1000,"0.00E+00")&" "&TEXT('Daily Calcs'!$T30*1000,"0.00E+00") -> 27 7.87E+00 7.11E+00 5.84E+00 4.31E+00 3.36E+00 1.14E+00 2.95E+00 2.88E+00 7.54E+00
A47: =" 28 "&TEXT('Daily Calcs'!$S31*1000,"0.00E+00")&" "&TEXT('Daily Calcs'!$V31*1000,"0.00E+00")&" "&TEXT('Daily Calcs'!$W31*1000,"0.00E+00")&" "&TEXT('Daily Calcs'!$X31*1000,"0.00E+00")&" "&TEXT('Daily Calcs'!$Y31*1000,"0.00E+00")&" "&TEXT('Daily Calcs'!$U31*1000,"0.00E+00")&" "&TEXT('Daily Calcs'!$Z31*1000,"0.00E+00")&" "&TEXT('Daily Calcs'!$AA31*1000,"0.00E+00")&" "&TEXT('Daily Calcs'!$T31*1000,"0.00E+00") -> 28 3.07E+00 2.85E+00 2.54E+00 2.09E+00 1.69E+00 6.68E-01 1.56E+00 1.53E+00 2.99E+00
A48: =" 29 "&TEXT('Daily Calcs'!$S32*1000,"0.00E+00")&" "&TEXT('Daily Calcs'!$V32*1000,"0.00E+00")&" "&TEXT('Daily Calcs'!$W32*1000,"0.00E+00")&" "&TEXT('Daily Calcs'!$X32*1000,"0.00E+00")&" "&TEXT('Daily Calcs'!$Y32*1000,"0.00E+00")&" "&TEXT('Daily Calcs'!$U32*1000,"0.00E+00")&" "&TEXT('Daily Calcs'!$Z32*1000,"0.00E+00")&" "&TEXT('Daily Calcs'!$AA32*1000,"0.00E+00")&" "&TEXT('Daily Calcs'!$T32*1000,"0.00E+00") -> 29 8.84E+00 7.43E+00 6.42E+00 5.13E+00 4.14E+00 1.19E+00 2.97E+00 2.95E+00 8.14E+00
A49: =" 30 "&TEXT('Daily Calcs'!$S33*1000,"0.00E+00")&" "&TEXT('Daily Calcs'!$V33*1000,"0.00E+00")&" "&TEXT('Daily Calcs'!$W33*1000,"0.00E+00")&" "&TEXT('Daily Calcs'!$X33*1000,"0.00E+00")&" "&TEXT('Daily Calcs'!$Y33*1000,"0.00E+00")&" "&TEXT('Daily Calcs'!$U33*1000,"0.00E+00")&" "&TEXT('Daily Calcs'!$Z33*1000,"0.00E+00")&" "&TEXT('Daily Calcs'!$AA33*1000,"0.00E+00")&" "&TEXT('Daily Calcs'!$T33*1000,"0.00E+00") -> 30 6.32E+00 5.33E+00 4.87E+00 3.90E+00 3.25E+00 1.06E+00 2.78E+00 2.74E+00 5.75E+00
